Workbook

Sheet Abundances
A1: Group | B1: Shammah_non_users | C1: Shammah_non_users | D1: Shammah_non_users | E1: Shammah_non_users | F1: Shammah_non_users | G1: Shammah_non_users | H1: Shammah_non_users | I1: Shammah_non_users | J1: Shammah_non_users | K1: Shammah_non_users | L1: Shammah_non_users | M1: Shammah_non_users | N1: Shammah_non_users | O1: Shammah_non_users | P1: Shammah_non_users | Q1: Shammah_non_users | R1: Shammah_non_users | S1: Shammah_non_users | T1: Shammah_non_users | U1: Shammah_non_users | V1: Shammah_non_users | W1: Shammah_non_users | X1: Shammah_non_users | Y1: Shammah_users | Z1: Shammah_users | AA1: Shammah_users | AB1: Shammah_users | AC1: Shammah_users | AD1: Shammah_users | AE1: Shammah_users | AF1: Shammah_users | AG1: Shammah_users | AH1: Shammah_users | AI1: Shammah_users | AJ1: Shammah_users | AK1: Shammah_users | AL1: Shammah_users | AM1: Shammah_users | AN1: Shammah_users | AO1: Shammah_users | AP1: Shammah_users | AQ1: Shammah_users | AR1: Shammah_users | AS1: Shammah_users | AT1: Shammah_users | AU1: Shammah_users | AV1: Shammah_users | AW1: Shammah_users | AX1: Shammah_users | AY1: Shammah_users | AZ1: Shammah_users | BA1: Shammah_users
A2: ID | B2: E1 | C2: E10 | D2: E11 | E2: E12 | F2: E13 | G2: E2 | H2: E3 | I2: E4 | J2: E40 | K2: E41 | L2: E43 | M2: E44 | N2: E45 | O2: E46 | P2: E47 | Q2: E48 | R2: E5 | S2: E51 | T2: E54 | U2: E6 | V2: E7 | W2: E8 | X2: E9 | Y2: E14 | Z2: E15 | AA2: E16 | AB2: E17 | AC2: E18 | AD2: E19 | AE2: E20 | AF2: E21 | AG2: E22 | AH2: E23 | AI2: E24 | AJ2: E25 | AK2: E26 | AL2: E27 | AM2: E28 | AN2: E29 | AO2: E30 | AP2: E31 | AQ2: E32 | AR2: E33 | AS2: E34 | AT2: E36 | AU2: E37 | AV2: E38 | AW2: E39 | AX2: E42 | AY2: E49 | AZ2: E50 | BA2: E53 | BB2: Non-users | BC2: Shammah users | BD2: Overall
A3: Streptococcus | B3: 0.228555305 | C3: 0.166586654 | D3: 0.13020111 | E3: 0.068270764 | F3: 0.032661949 | G3: 0.166074206 | H3: 0.120178778 | I3: 0.110060514 | J3: 0.098296302 | K3: 0.219126901 | L3: 0.165615682 | M3: 0.191312956 | N3: 0.203929311 | O3: 0.294175716 | P3: 0.039242293 | Q3: 0.154099607 | R3: 0.054278363 | S3: 0.22191374 | T3: 0.136141556 | U3: 0.309603907 | V3: 0.111991477 | W3: 0.235717686 | X3: 0.091175347 | Y3: 0.20889901 | Z3: 0.256452253 | AA3: 0.190086669 | AB3: 0.368917682 | AC3: 0.333581202 | AD3: 0.202476507 | AE3: 0.368437959 | AF3: 0.208623479 | AG3: 0.222307144 | AH3: 0.178136034 | AI3: 0.390776699 | AJ3: 0.333010246 | AK3: 0.228559207 | AL3: 0.096038692 | AM3: 0.280867769 | AN3: 0.262918849 | AO3: 0.286062246 | AP3: 0.166878173 | AQ3: 0.21639147 | AR3: 0.09924201 | AS3: 0.112303881 | AT3: 0.084376829 | AU3: 0.179723817 | AV3: 0.089722675 | AW3: 0.169121031 | AX3: 0.108032689 | AY3: 0.148242085 | AZ3: 0.144054141 | BA3: 0.295837104 | BB3: =AVERAGE(B3:X3) -> 15.43% | BC3: =AVERAGE(Y3:BA3) -> 21.48% | BD3: =AVERAGE(B3:BA3) -> 18.81%
A4: Actinomyces | B4: 0.085214447 | C4: 0.093230917 | D4: 0.117718447 | E4: 0.131178432 | F4: 0.075744615 | G4: 0.131637414 | H4: 0.104066656 | I4: 0.019036813 | J4: 0.034780561 | K4: 0.054142632 | L4: 0.109840153 | M4: 0.125232026 | N4: 0.161121009 | O4: 0.17777587 | P4: 0.126953973 | Q4: 0.150044354 | R4: 0.041995186 | S4: 0.07463843 | T4: 0.080681368 | U4: 0.099728703 | V4: 0.1480791 | W4: 0.211735301 | X4: 0.221953394 | Y4: 0.1184199 | Z4: 0.104427238 | AA4: 0.132729574 | AB4: 0.106682628 | AC4: 0.129684711 | AD4: 0.171887236 | AE4: 0.108571953 | AF4: 0.151930787 | AG4: 0.097421787 | AH4: 0.159549664 | AI4: 0.07679342 | AJ4: 0.120465245 | AK4: 0.05867256 | AL4: 0.152095808 | AM4: 0.226404959 | AN4: 0.033415211 | AO4: 0.07541723 | AP4: 0.192734772 | AQ4: 0.135303162 | AR4: 0.027701805 | AS4: 0.083985039 | AT4: 0.101813926 | AU4: 0.137065901 | AV4: 0.075040783 | AW4: 0.15822979 | AX4: 0.123380506 | AY4: 0.084309953 | AZ4: 0.065957675 | BA4: 0.079366516 | BB4: 11.20% | BC4: 11.34% | BD4: 11.28%
A5: Leptotrichia | B5: 0.069977427 | C5: 0.193086894 | D5: 0.199722607 | E5: 0.191477026 | F5: 0.166575939 | G5: 0.047211731 | H5: 0.120620206 | I5: 0.135400908 | J5: 0.051660517 | K5: 0.080755113 | L5: 0.115119519 | M5: 0.071092687 | N5: 0.091587615 | O5: 0.015193785 | P5: 0.302540165 | Q5: 0.065517678 | R5: 0.165407918 | S5: 0.107179752 | T5: 0.042651525 | U5: 0.20933261 | V5: 0.142286437 | W5: 0.099619138 | X5: 0.198777537 | Y5: 0.057545765 | Z5: 0.054695255 | AA5: 0.032525075 | AB5: 0.009647208 | AC5: 0.101427722 | AD5: 0.207223962 | AE5: 0.012802863 | AF5: 0.089188999 | AG5: 0.066697238 | AH5: 0.260475651 | AI5: 0.025283172 | AJ5: 0.095956799 | AK5: 0.047551151 | AL5: 0.264302165 | AM5: 0.115082645 | AN5: 0.007786068 | AO5: 0.048714479 | AP5: 0.147049492 | AQ5: 0.092319005 | AR5: 0.228100336 | AS5: 0.077330354 | AT5: 0.109245173 | AU5: 0.224500957 | AV5: 0.118208056 | AW5: 0.13084829 | AX5: 0.148495117 | AY5: 0.031310128 | AZ5: 0.036308948 | BA5: 0.036289593 | BB5: 12.53% | BC5: 9.92% | BD5: 11.08%
A6: Veillonella | B6: 0.043566591 | C6: 0.11262602 | D6: 0.099774619 | E6: 0.087259023 | F6: 0.098763512 | G6: 0.05654299 | H6: 0.102907907 | I6: 0.11913767 | J6: 0.043809374 | K6: 0.086130047 | L6: 0.044336902 | M6: 0.10673184 | N6: 0.105889151 | O6: 0.092836602 | P6: 0.072568389 | Q6: 0.05601318 | R6: 0.075109968 | S6: 0.094395661 | T6: 0.069457282 | U6: 0.064134563 | V6: 0.06718157 | W6: 0.060818853 | X6: 0.089137909 | Y6: 0.029867741 | Z6: 0.060651181 | AA6: 0.092803584 | AB6: 0.120484473 | AC6: 0.106484236 | AD6: 0.053837118 | AE6: 0.043456314 | AF6: 0.096433847 | AG6: 0.043157037 | AH6: 0.099793485 | AI6: 0.131000539 | AJ6: 0.087233453 | AK6: 0.079418265 | AL6: 0.117227084 | AM6: 0.092933884 | AN6: 0.019696899 | AO6: 0.095173658 | AP6: 0.065117386 | AQ6: 0.099505315 | AR6: 0.113034305 | AS6: 0.125856123 | AT6: 0.160386191 | AU6: 0.024336888 | AV6: 0.152214832 | AW6: 0.102162908 | AX6: 0.08650588 | AY6: 0.120780129 | AZ6: 0.090342679 | BA6: 0.04081448 | BB6: 8.04% | BC6: 8.80% | BD6: 8.46%
A7: Neisseria | B7: 0.029345372 | C7: 0.035621699 | D7: 0.071775312 | E7: 0.062327874 | F7: 0.022474531 | G7: 0.101421906 | H7: 0.001158749 | I7: 0.021873424 | J7: 0.052759677 | K7: 0.018681175 | L7: 0.024294862 | M7: 0.057542383 | N7: 0.027784466 | O7: 0.012489806 | P7: 0.002822406 | Q7: 0.217082753 | R7: 0.03701552 | S7: 6.46E-05 | T7: 0.161230688 | U7: 0.059793814 | V7: 0.158266196 | W7: 0.000595096 | X7: 0.052082007 | Y7: 0.211088727 | Z7: 0.09057971 | AA7: 0.14860259 | AB7: 0.080416872 | AC7: 0.066478287 | AD7: 0.012578309 | AE7: 0.012160426 | AF7: 0.019202363 | AG7: 0.108274738 | AH7: 0.034108321 | AI7: 0.012068501 | AJ7: 0.029077818 | AK7: 0.071433664 | AL7: 0.044771994 | AM7: 0.003553719 | AN7: 0.103119062 | AO7: 0 | AP7: 0.058613579 | AQ7: 0.103750251 | AR7: 0.001836368 | AS7: 0.190314276 | AT7: 0.004564073 | AU7: 0.001982499 | AV7: 0.111055339 | AW7: 0.011351434 | AX7: 0.015646801 | AY7: 0.118856043 | AZ7: 0.140401762 | BA7: 0.075746606 | BB7: 5.34% | BC7: 6.49% | BD7: 5.98%
A8: Prevotella | B8: 0.011963883 | C8: 0.015746519 | D8: 0.15221914 | E8: 0.159588346 | F8: 0.111439459 | G8: 0.071984004 | H8: 0.018374441 | I8: 0.019541099 | J8: 0.004161105 | K8: 0.030479811 | L8: 0.066236496 | M8: 0.00736295 | N8: 0.006597005 | O8: 0.032619426 | P8: 0.099218411 | Q8: 0.025472057 | R8: 0.005477633 | S8: 0.251485021 | T8: 0.025089132 | U8: 0.060119371 | V8: 0.001464811 | W8: 0.019281124 | X8: 0.106838151 | Y8: 0.00332837 | Z8: 0.00347429 | AA8: 0.07108774 | AB8: 0.074431378 | AC8: 0.044765021 | AD8: 0.022317933 | AE8: 0.036618943 | AF8: 0.065273968 | AG8: 0.017680628 | AH8: 0.011791353 | AI8: 0.012877562 | AJ8: 0.054417059 | AK8: 0.023526057 | AL8: 0.029387379 | AM8: 0.113884298 | AN8: 0.005237058 | AO8: 0.173026613 | AP8: 0.042592005 | AQ8: 0.087037904 | AR8: 0.057669766 | AS8: 0.033759168 | AT8: 0.103978935 | AU8: 0.196677605 | AV8: 0.078805371 | AW8: 0.105154165 | AX8: 0.096970301 | AY8: 0.162760189 | AZ8: 0.055322806 | BA8: 0.010859729 | BB8: 5.66% | BC8: 6.19% | BD8: 5.96%
A9: Haemophilus | B9: 0.028893905 | C9: 0.159193471 | D9: 0.020110957 | E9: 0.045223945 | F9: 0.07045649 | G9: 0.058209287 | H9: 0.025547647 | I9: 0.129601614 | J9: 0.123105912 | K9: 0.165312008 | L9: 0.003372929 | M9: 0.194221012 | N9: 0.103722252 | O9: 0.00283274 | P9: 0.017640035 | Q9: 0.02648587 | R9: 0.130965225 | S9: 0.000322831 | T9: 0.050706457 | U9: 0.020401519 | V9: 0.024435715 | W9: 0.003094501 | X9: 0.012224628 | Y9: 0.087501095 | Z9: 0.023774072 | AA9: 0.068555848 | AB9: 0.081402718 | AC9: 0.017400357 | AD9: 0.00880971 | AE9: 0.00775514 | AF9: 0.010058381 | AG9: 0.033374096 | AH9: 0.07800946 | AI9: 0.089738403 | AJ9: 0.042785932 | AK9: 0.116917374 | AL9: 0.099124827 | AM9: 0.003553719 | AN9: 0.048894656 | AO9: 0.001082544 | AP9: 0.036484772 | AQ9: 0.046560599 | AR9: 0.092091897 | AS9: 0.02661874 | AT9: 0.097952019 | AU9: 0.001298879 | AV9: 0.085456143 | AW9: 0.024697039 | AX9: 0.068766195 | AY9: 0.081248907 | AZ9: 0.192609303 | BA9: 0.018823529 | BB9: 6.16% | BC9: 5.49% | BD9: 5.78%
A10: Rothia | B10: 0.195485327 | C10: 0.011041767 | D10: 0.026959085 | E10: 0.003188868 | F10: 0.002099697 | G10: 0.169406798 | H10: 0.001213927 | I10: 0.000126072 | J10: 0.00164874 | K10: 0.003408495 | L10: 0.010216552 | M10: 0.021965103 | N10: 0.003707806 | O10: 0.105111807 | P10: 0.001356926 | Q10: 0.070333291 | R10: 0.000497967 | S10: 0.007295971 | T10: 0.004357586 | U10: 0.034617472 | V10: 0.02829749 | W10: 0.024220424 | X10: 0.008277092 | Y10: 0.081632653 | Z10: 0.120111177 | AA10: 0.101665206 | AB10: 0.086543201 | AC10: 0.087447948 | AD10: 0.045027408 | AE10: 0.260646109 | AF10: 0.030175142 | AG10: 0.051666157 | AH10: 0.049163946 | AI10: 0.197478425 | AJ10: 0.118526724 | AK10: 0.046267912 | AL10: 0.017825887 | AM10: 0.035454545 | AN10: 0.227325393 | AO10: 0.086513306 | AP10: 0.076300761 | AQ10: 0.069556789 | AR10: 0.004454169 | AS10: 0.000534318 | AT10: 0.016208309 | AU10: 0.018799562 | AV10: 0.001380349 | AW10: 0.049624175 | AX10: 0.003787124 | AY10: 0.081336365 | AZ10: 0.015361478 | BA10: 0.25158371 | BB10: 3.19% | BC10: 7.70% | BD10: 5.71%
A11: Granulicatella | B11: 0.066930023 | C11: 0.043206913 | D11: 0.010662275 | E11: 0.00695753 | F11: 0.004121627 | G11: 0.045434348 | H11: 0.021409259 | I11: 0.012733232 | J11: 0.013582476 | K11: 0.032642895 | L11: 0.012220756 | M11: 0.064905333 | N11: 0.057543218 | O11: 0.023649084 | P11: 0.004993487 | Q11: 0.020656444 | R11: 0.004149722 | S11: 0.002582645 | T11: 0.007394692 | U11: 0.013998915 | V11: 0.017577735 | W11: 0.015412997 | X11: 0.012351967 | Y11: 0.032845756 | Z11: 0.044768712 | AA11: 0.046158341 | AB11: 0.040208436 | AC11: 0.011302796 | AD11: 0.02295419 | AE11: 0.028863803 | AF11: 0.018709995 | AG11: 0.043870376 | AH11: 0.006928253 | AI11: 0.031014024 | AJ11: 0.026585433 | AK11: 0.111998289 | AL11: 0.025241824 | AM11: 0.006694215 | AN11: 0.043657598 | AO11: 0.015606676 | AP11: 0.015625 | AQ11: 0.039675112 | AR11: 0.00871298 | AS11: 0.008743382 | AT11: 0.010708016 | AU11: 0.004375171 | AV11: 0.049692559 | AW11: 0.008590275 | AX11: 0.012058999 | AY11: 0.015742522 | AZ11: 0.029541304 | BA11: 0.074027149 | BB11: 2.24% | BC11: 2.88% | BD11: 2.60%
A12: Atopobium | B12: 0.004514673 | C12: 0.013346135 | D12: 0.010662275 | E12: 0.022104653 | F12: 0.016564274 | G12: 0.017884914 | H12: 0.036969597 | I12: 0.015821987 | J12: 0.007537097 | K12: 0.015010488 | L12: 0.013491714 | M12: 0.051045663 | N12: 0.068859248 | O12: 0.028584918 | P12: 0.037993921 | Q12: 0.015460651 | R12: 0.022823471 | S12: 0.06017562 | T12: 0.013600951 | U12: 0.014541508 | V12: 0.003329116 | W12: 0.022554154 | X12: 0.009041131 | Y12: 0.001138653 | Z12: 0.002977963 | AA12: 0.003700458 | AB12: 0.01598479 | AC12: 0.026621059 | AD12: 0.03660924 | AE12: 0.01404185 | AF12: 0.016177815 | AG12: 0.004738612 | AH12: 0.020851376 | AI12: 0.003303668 | AJ12: 0.009831072 | AK12: 0.01318885 | AL12: 0.015983418 | AM12: 0.037933884 | AN12: 0.000973259 | AO12: 0.149932341 | AP12: 0.016497462 | AQ12: 0.014339194 | AR12: 0.024732359 | AS12: 0.009083402 | AT12: 0.061790521 | AU12: 0.062004375 | AV12: 0.048939641 | AW12: 0.023776653 | AX12: 0.048933626 | AY12: 0.017754067 | AZ12: 0.015468901 | BA12: 0.00199095 | BB12: 2.27% | BC12: 2.48% | BD12: 2.39%
A13: Fusobacterium | B13: 0.051580135 | C13: 0.000288046 | D13: 0.089632455 | E13: 0.019278156 | F13: 0.007854421 | G13: 0.056431904 | H13: 0.016498372 | I13: 0.036371659 | J13: 0.058019942 | K13: 0.005964866 | L13: 0.002688566 | M13: 0.007053582 | N13: 0.009582511 | O13: 0.002446457 | P13: 0.002442466 | Q13: 0.005195793 | R13: 0.013611088 | S13: 0.001936983 | T13: 0.109467846 | U13: 0.021920781 | V13: 0.048405353 | W13: 0.002082837 | X13: 0.003310837 | Y13: 0.017167382 | Z13: 0.030027794 | AA13: 0.015191353 | AB13: 0.000140835 | AC13: 0.001338489 | AD13: 0.010326938 | AE13: 0.008902349 | AF13: 0.020749807 | AG13: 0.043157037 | AH13: 0.000932649 | AI13: 0.00188781 | AJ13: 0.019523678 | AK13: 0.018535681 | AL13: 0.010363888 | AM13: 0.002272727 | AN13: 0.004866293 | AO13: 0.000180424 | AP13: 0.048540609 | AQ13: 0.00056822 | AR13: 0.024068141 | AS13: 0.057074853 | AT13: 0.005558806 | AU13: 0.008203445 | AV13: 0.017819049 | AW13: 0.01917472 | AX13: 0.018736297 | AY13: 0.040143432 | AZ13: 0.031260071 | BA13: 0.009773756 | BB13: 2.49% | BC13: 1.68% | BD13: 2.04%
A14: Porphyromonas | B14: 0.07268623 | C14: 0.007009121 | D14: 0.005287795 | E14: 0.03087404 | F14: 0.000622132 | G14: 0.004554543 | H14: 0.000331071 | I14: 0.02584468 | J14: 0.098217791 | K14: 0.048636602 | L14: 0.008163465 | M14: 0.003588665 | N14: 0.006019165 | O14: 0.000343362 | P14: 0.000651324 | Q14: 0.000887087 | R14: 0.013528094 | S14: 0.000516529 | T14: 0.076851974 | U14: 0.00846446 | V14: 0.064718024 | W14: 0.002023328 | X14: 0.015153445 | Y14: 0.079880879 | Z14: 0.051220965 | AA14: 0.023858214 | AB14: 0.001760439 | AC14: 0.000297442 | AD14: 0.03401527 | AE14: 0.004084068 | AF14: 0.001828797 | AG14: 0.121573423 | AH14: 0.000399707 | AI14: 0.001078749 | AJ14: 0.006507893 | AK14: 0.053539602 | AL14: 0.004836481 | AM14: 0.002520661 | AN14: 0.0021319 | AO14: 0.000360848 | AP14: 0.006979695 | AQ14: 0.005749047 | AR14: 0.00683754 | AS14: 0.01700102 | AT14: 0.000994734 | AU14: 0.001503965 | AV14: 0.002886184 | AW14: 0.008053382 | AX14: 0.005680686 | AY14: 0.007171593 | AZ14: 0.00698249 | BA14: 0.012126697 | BB14: 2.15% | BC14: 1.63% | BD14: 1.86%
A15: Capnocytophaga | B15: 0.003273138 | C15: 0.004032645 | D15: 0.002167129 | E15: 0.014712277 | F15: 0.001244265 | G15: 0.000999778 | H15: 0.168901396 | I15: 0.097453354 | J15: 0.136923922 | K15: 0.016780283 | L15: 0.00210197 | M15: 0.001299344 | N15: 0.004044879 | O15: 4.29E-05 | P15: 0.000868432 | Q15: 0.000126727 | R15: 0.186156528 | S15: 0.000516529 | T15: 0.026013469 | U15: 0.004666305 | V15: 0.078766895 | W15: 0.000416567 | X15: 0.010823889 | Y15: 0.016028729 | Z15: 0.040053603 | AA15: 0.000584283 | AB15: 0.000633758 | AC15: 0.000743605 | AD15: 0.009886453 | AE15: 0.000734214 | AF15: 0.000140677 | AG15: 0.019056354 | AH15: 0 | AI15: 0.006000539 | AJ15: 0.000969261 | AK15: 0.002922934 | AL15: 0.00239521 | AM15: 0.001033058 | AN15: 0.002502665 | AO15: 9.02E-05 | AP15: 0.003172589 | AQ15: 0.000735343 | AR15: 0.010940064 | AS15: 0.030941857 | AT15: 0.003920421 | AU15: 0.000273448 | AV15: 0.002509725 | AW15: 0.000230097 | AX15: 0.004584413 | AY15: 0.001749169 | AZ15: 0.009882909 | BA15: 0.000904977 | BB15: 3.31% | BC15: 0.60% | BD15: 1.80%
A16: Mogibacterium | B16: 0.013318284 | C16: 0.029092655 | D16: 0.009795423 | E16: 0.00492825 | F16: 0.004354927 | G16: 0.008553655 | H16: 0.023837113 | I16: 0.007501261 | J16: 0.015545262 | K16: 0.011077609 | L16: 0.009972137 | M16: 0.003031803 | N16: 0.003611499 | O16: 0.061247264 | P16: 0.009009987 | Q16: 0.010011405 | R16: 0.031371898 | S16: 0.057334711 | T16: 0.035785026 | U16: 0.000325556 | V16: 0.006058992 | W16: 0.010830755 | X16: 0.022666497 | Y16: 0.002978015 | Z16: 0.004913639 | AA16: 0.005940208 | AB16: 0 | AC16: 0.022754313 | AD16: 0.031225529 | AE16: 0.006745595 | AF16: 0.010128719 | AG16: 0.013094874 | AH16: 0.007661049 | AI16: 0.000471953 | AJ16: 0.008723345 | AK16: 0.020389249 | AL16: 0.005158913 | AM16: 0.009132231 | AN16: 0.000231728 | AO16: 0.000360848 | AP16: 0.01982868 | AQ16: 0.008021927 | AR16: 0.018129249 | AS16: 0.029096031 | AT16: 0.013809245 | AU16: 0.009297238 | AV16: 0.009035011 | AW16: 0.009357263 | AX16: 0.04933227 | AY16: 0.017141858 | AZ16: 0.026211193 | BA16: 0.005429864 | BB16: 1.69% | BC16: 1.26% | BD16: 1.45%
A17: Oribacterium | B17: 0.015688488 | C17: 0.012962074 | D17: 0.010228849 | E17: 0.018118568 | F17: 0.037172408 | G17: 0.010331038 | H17: 0.063234564 | I17: 0.04116238 | J17: 0.02371045 | K17: 0.030152071 | L17: 0.007039155 | M17: 0.018314565 | N17: 0.031299658 | O17: 0.029271643 | P17: 0.007653061 | Q17: 0.002787986 | R17: 0.017926799 | S17: 0.017884814 | T17: 0.009507461 | U17: 0.011177428 | V17: 0.014048871 | W17: 0.002320876 | X17: 0.022411817 | Y17: 0.002802838 | Z17: 0.009628747 | AA17: 0.019086571 | AB17: 0.001126681 | AC17: 0.005502677 | AD17: 0.024422475 | AE17: 0.002477974 | AF17: 0.010128719 | AG17: 0.008152451 | AH17: 0.005329425 | AI17: 0.002831715 | AJ17: 0.003323179 | AK17: 0.009481714 | AL17: 0.007093505 | AM17: 0.005495868 | AN17: 0.003105158 | AO17: 0.000811908 | AP17: 0.012611041 | AQ17: 0.006384117 | AR17: 0.027740877 | AS17: 0.019769758 | AT17: 0.016149795 | AU17: 0.007109653 | AV17: 0.018948425 | AW17: 0.016566958 | AX17: 0.007474586 | AY17: 0.01189435 | AZ17: 0.014394672 | BA17: 0.002624434 | BB17: 1.98% | BC17: 0.97% | BD17: 1.42%
A18: Lachnoanaerobaculum | B18: 0.004288939 | C18: 0.004992799 | D18: 0.009015257 | E18: 0.012248152 | F18: 0.019908235 | G18: 0.002221729 | H18: 0.04607405 | I18: 0.020549672 | J18: 0.010913088 | K18: 0.01979549 | L18: 0.007185804 | M18: 0.004702388 | N18: 0.007800838 | O18: 0.012146444 | P18: 0.089882762 | Q18: 0.007983779 | R18: 0.02597726 | S18: 0.011686467 | T18: 0.005281923 | U18: 0.000651112 | V18: 0.014448365 | W18: 0.004582242 | X18: 0.020374379 | Y18: 0.002102128 | Z18: 0.007891602 | AA18: 0.005063784 | AB18: 7.04E-05 | AC18: 0.004907793 | AD18: 0.010669538 | AE18: 0.00087188 | AF18: 0.007596539 | AG18: 0.00489147 | AH18: 0.000732796 | AI18: 0.00114617 | AJ18: 0.001938521 | AK18: 0.014543381 | AL18: 0.0326117 | AM18: 0.009669421 | AN18: 0.001251332 | AO18: 0.000360848 | AP18: 0.01142132 | AQ18: 0.015041112 | AR18: 0.024693287 | AS18: 0.022101326 | AT18: 0.028437683 | AU18: 0.020850424 | AV18: 0.017191618 | AW18: 0.007593189 | AX18: 0.012357983 | AY18: 0.00848347 | AZ18: 0.020410356 | BA18: 0.002171946 | BB18: 1.58% | BC18: 1.02% | BD18: 1.27%
A19: Solobacterium | B19: 0.006884876 | C19: 0.004512722 | D19: 0.003467406 | E19: 0.007102479 | F19: 0.107939964 | G19: 0.00744279 | H19: 0.011918557 | I19: 0.006114473 | J19: 0.018685719 | K19: 0.035527006 | L19: 0.039253067 | M19: 0.006187353 | N19: 0.011267877 | O19: 0.018412807 | P19: 0.009661311 | Q19: 0.0038018 | R19: 0.016432899 | S19: 0.019047004 | T19: 0.013997095 | U19: 0.001519262 | V19: 0.003129369 | W19: 0.002142347 | X19: 0.018082262 | Y19: 0.00534291 | Z19: 0.008983522 | AA19: 0.009932807 | AB19: 7.04E-05 | AC19: 0.006841166 | AD19: 0.012480423 | AE19: 0.003212188 | AF19: 0.005275375 | AG19: 0.005706716 | AH19: 0.000866032 | AI19: 0.000337109 | AJ19: 0.001246192 | AK19: 0.013260141 | AL19: 0.004790419 | AM19: 0.010950413 | AN19: 0.000602493 | AO19: 0.000631484 | AP19: 0.013562817 | AQ19: 0.002005482 | AR19: 0.032273189 | AS19: 0.015932385 | AT19: 0.017203043 | AU19: 0.013330599 | AV19: 0.017317104 | AW19: 0.020095107 | AX19: 0.004983058 | AY19: 0.014255729 | AZ19: 0.019550972 | BA19: 0.004072398 | BB19: 1.62% | BC19: 0.91% | BD19: 1.23%
A20: Klebsiella | B20: 0 | C20: 0 | D20: 0 | E20: 0.000144949 | F20: 0 | G20: 0 | H20: 0 | I20: 0 | J20: 0 | K20: 0.000131096 | L20: 0.277508921 | M20: 0 | N20: 0.00014446 | O20: 0 | P20: 0.000162831 | Q20: 0 | R20: 0 | S20: 0 | T20: 0 | U20: 0 | V20: 6.66E-05 | W20: 0 | X20: 0 | Y20: 0 | Z20: 9.93E-05 | AA20: 0 | AB20: 7.04E-05 | AC20: 0.000594884 | AD20: 0 | AE20: 0 | AF20: 0.200112541 | AG20: 0 | AH20: 0.028778895 | AI20: 0 | AJ20: 0 | AK20: 0 | AL20: 9.21E-05 | AM20: 0 | AN20: 0.000139037 | AO20: 0 | AP20: 0 | AQ20: 0 | AR20: 0 | AS20: 0 | AT20: 0.020479813 | AU20: 0 | AV20: 0 | AW20: 0.088663906 | AX20: 0 | AY20: 0 | AZ20: 0 | BA20: 0 | BB20: 1.21% | BC20: 1.17% | BD20: 1.19%
A21: Stomatobaculum | B21: 0.008352144 | C21: 0.00537686 | D21: 0.006761442 | E21: 0.006667633 | F21: 0.012987013 | G21: 0.002554988 | H21: 0.045411908 | I21: 0.016389309 | J21: 0.055350554 | K21: 0.017697955 | L21: 0.008310114 | M21: 0.011941591 | N21: 0.015216449 | O21: 0.003090261 | P21: 0.003962223 | Q21: 0.006843239 | R21: 0.043821064 | S21: 0.013106921 | T21: 0.003829394 | U21: 0.001953337 | V21: 0.001265064 | W21: 0.012913592 | X21: 0.005348275 | Y21: 0.001664185 | Z21: 0.008735358 | AA21: 0.006524491 | AB21: 7.04E-05 | AC21: 0.002379536 | AD21: 0.013703994 | AE21: 0.004772394 | AF21: 0.008581276 | AG21: 0.003821461 | AH21: 0.000799414 | AI21: 0.000674218 | AJ21: 0.00263085 | AK21: 0.010836244 | AL21: 0.009857209 | AM21: 0.010909091 | AN21: 0.000834222 | AO21: 0.001262968 | AP21: 0.009755711 | AQ21: 0.00818905 | AR21: 0.022114558 | AS21: 0.022295623 | AT21: 0.015330603 | AU21: 0.006767842 | AV21: 0.013928975 | AW21: 0.021398988 | AX21: 0.018935619 | AY21: 0.012419101 | AZ21: 0.017939628 | BA21: 0.001085973 | BB21: 1.34% | BC21: 0.89% | BD21: 1.09%
A22: Campylobacter | B22: 0.000564334 | C22: 0.032165146 | D22: 0.003207351 | E22: 0.015581968 | F22: 0.009254219 | G22: 0.002554988 | H22: 0.019202119 | I22: 0.023638427 | J22: 0.021198084 | K22: 0.011995281 | L22: 0.001564257 | M22: 0.005816112 | N22: 0.010834497 | O22: 0.001545131 | P22: 0.035714286 | Q22: 0.003548346 | R22: 0.010955266 | S22: 0.000774793 | T22: 0.006602403 | U22: 0.014541508 | V22: 0.011385578 | W22: 0.001130683 | X22: 0.010696549 | Y22: 0 | Z22: 0.000694858 | AA22: 0.002239751 | AB22: 0.001408352 | AC22: 0.001189768 | AD22: 0.002691856 | AE22: 0.000780103 | AF22: 0.003094886 | AG22: 0.00127382 | AH22: 0.003797215 | AI22: 0.001752967 | AJ22: 0.003323179 | AK22: 0.006843944 | AL22: 0.024781207 | AM22: 0.002190083 | AN22: 0.000787876 | AO22: 0.000631484 | AP22: 0.003648477 | AQ22: 0.030850993 | AR22: 0.004219739 | AS22: 0.03366202 | AT22: 0.028145114 | AU22: 0.002119223 | AV22: 0.021709123 | AW22: 0.002300966 | AX22: 0.046641419 | AY22: 0.003235963 | AZ22: 0.037598023 | BA22: 0.000361991 | BB22: 1.11% | BC22: 0.94% | BD22: 1.01%
A23: Tannerella | B23: 0.000902935 | C23: 0 | D23: 0.000433426 | E23: 0.023988984 | F23: 0.099618944 | G23: 0.000666519 | H23: 0.002262319 | I23: 0.080244579 | J23: 0.012561828 | K23: 0.001376508 | L23: 0.001417608 | M23: 0.015406509 | N23: 0.032021958 | O23: 0 | P23: 0.001302649 | Q23: 0.000253453 | R23: 0.023902399 | S23: 0 | T23: 0.02799419 | U23: 0.002930005 | V23: 0.01258406 | W23: 5.95E-05 | X23: 0.020756399 | Y23: 0.000875887 | Z23: 0.004814374 | AA23: 0.000486902 | AB23: 0 | AC23: 0.000297442 | AD23: 0.005726312 | AE23: 0.000229442 | AF23: 0.002672856 | AG23: 0.00234383 | AH23: 0 | AI23: 0.000876483 | AJ23: 0.000692329 | AK23: 0.000285164 | AL23: 0.007876555 | AM23: 4.13E-05 | AN23: 9.27E-05 | AO23: 9.02E-05 | AP23: 0.006186548 | AQ23: 0.000133699 | AR23: 0.037626006 | AS23: 0.003108758 | AT23: 0.021942657 | AU23: 0.000410172 | AV23: 0.002509725 | AW23: 0.000383494 | AX23: 0.013155272 | AY23: 0.000874585 | AZ23: 0.001074229 | BA23: 0.000452489 | BB23: 1.57% | BC23: 0.40% | BD23: 0.92%
A24: Peptostreptococcus | B24: 0.003724605 | C24: 0.000192031 | D24: 0.000606796 | E24: 0.009928975 | F24: 0.001244265 | G24: 0.002110642 | H24: 0.000882856 | I24: 0.008761977 | J24: 0.06838345 | K24: 0.032905087 | L24: 0.050398397 | M24: 0.002908056 | N24: 0.007030385 | O24: 0.023434482 | P24: 0.001139818 | Q24: 0.001647446 | R24: 0.042908125 | S24: 0.000193698 | T24: 0.018090585 | U24: 0.000434075 | V24: 0.004394434 | W24: 5.95E-05 | X24: 0.00025468 | Y24: 0.001401419 | Z24: 0.003672821 | AA24: 0.001947609 | AB24: 7.04E-05 | AC24: 0.001338489 | AD24: 0.001321457 | AE24: 0.000367107 | AF24: 0.000633045 | AG24: 0.003159075 | AH24: 0 | AI24: 0.000202265 | AJ24: 0.000138466 | AK24: 0.00855493 | AL24: 0.002303086 | AM24: 4.13E-05 | AN24: 0.000231728 | AO24: 0 | AP24: 0.002458756 | AQ24: 0.000534795 | AR24: 0.00707197 | AS24: 0.027298781 | AT24: 0.002106495 | AU24: 0.000136724 | AV24: 0.011168277 | AW24: 0.000920387 | AX24: 0.032987841 | AY24: 0.000262375 | AZ24: 0 | BA24: 0.001085973 | BB24: 1.22% | BC24: 0.38% | BD24: 0.76%
A25: Lachnospiraceae_[G-2] | B25: 0 | C25: 0 | D25: 0 | E25: 0.014639803 | F25: 0.031650984 | G25: 0 | H25: 0.005352315 | I25: 0.027105396 | J25: 0.007772631 | K25: 0.003736235 | L25: 0.002395268 | M25: 0.009342903 | N25: 0.008812058 | O25: 4.29E-05 | P25: 0.048523665 | Q25: 0.0019009 | R25: 0.00522865 | S25: 0.018853306 | T25: 0 | U25: 0.000217037 | V25: 0 | W25: 0 | X25: 0.006876353 | Y25: 8.76E-05 | Z25: 0 | AA25: 0.000779044 | AB25: 0 | AC25: 0 | AD25: 0.00362177 | AE25: 0.000550661 | AF25: 0.001477105 | AG25: 0.000560481 | AH25: 0 | AI25: 0.000202265 | AJ25: 0.002215453 | AK25: 0.004063592 | AL25: 0.000368494 | AM25: 0.000454545 | AN25: 4.63E-05 | AO25: 0 | AP25: 0.005789975 | AQ25: 0 | AR25: 0.033289052 | AS25: 0.015349492 | AT25: 0.023229959 | AU25: 0.018867925 | AV25: 0.013050571 | AW25: 0.007746587 | AX25: 0.008471198 | AY25: 0 | AZ25: 0.000214846 | BA25: 0.000542986 | BB25: 0.84% | BC25: 0.49% | BD25: 0.64%
A26: Gemella | B26: 0.020541761 | C26: 0.004320691 | D26: 0.001733703 | E26: 0.001666908 | F26: 0.000155533 | G26: 0.016329705 | H26: 0.001434641 | I26: 0.000441251 | J26: 0.002433854 | K26: 0.006227058 | L26: 0.001955321 | M26: 0.00928103 | N26: 0.009486204 | O26: 0.003605305 | P26: 0.001302649 | Q26: 0.002027626 | R26: 0.000829944 | S26: 0.000903926 | T26: 0.010035653 | U26: 0.006836679 | V26: 0.014115454 | W26: 0.003987146 | X26: 0.001273399 | Y26: 0.011211351 | Z26: 0.029779631 | AA26: 0.003018794 | AB26: 0.006407999 | AC26: 0.004312909 | AD26: 0.014878622 | AE26: 0.015739721 | AF26: 0.001336428 | AG26: 0.009630083 | AH26: 0.001332356 | AI26: 0.003236246 | AJ26: 0.020077541 | AK26: 0.010337207 | AL26: 0.001658222 | AM26: 0.004008264 | AN26: 0.023636279 | AO26: 0.000721696 | AP26: 0.013404188 | AQ26: 0.001804933 | AR26: 0.001211221 | AS26: 0.000680041 | AT26: 0.00046811 | AU26: 0.001025431 | AV26: 0.000125486 | AW26: 0.001764074 | AX26: 0.000597967 | AY26: 0.002186461 | AZ26: 0.002148458 | BA26: 0.022533937 | BB26: 0.53% | BC26: 0.72% | BD26: 0.63%
A27: TM7_[G-1] | B27: 0.001693002 | C27: 0.015362458 | D27: 0.001126907 | E27: 0.012538049 | F27: 0.015397776 | G27: 0.001110864 | H27: 0.01511891 | I27: 0.00271054 | J27: 0.002983434 | K27: 0.002753015 | L27: 0.005230483 | M27: 0.0042074 | N27: 0.005537632 | O27: 0.004249109 | P27: 0.036745549 | Q27: 0.0019009 | R27: 0.004730683 | S27: 0.001872417 | T27: 0.005546019 | U27: 0.001085187 | V27: 0.000266329 | W27: 0.001963818 | X27: 0.010569209 | Y27: 0.003766313 | Z27: 0.00749454 | AA27: 0.000486902 | AB27: 0.000422505 | AC27: 0.001635931 | AD27: 0.005481597 | AE27: 0.002110866 | AF27: 0.00295421 | AG27: 0.003515744 | AH27: 0.005862368 | AI27: 0.000809061 | AJ27: 0.001523124 | AK27: 0.001425822 | AL27: 0.00400737 | AM27: 0.00338843 | AN27: 0.001761135 | AO27: 0.000360848 | AP27: 0.003093274 | AQ27: 0.003543018 | AR27: 0.023208565 | AS27: 0.005246029 | AT27: 0.011468695 | AU27: 0.01770577 | AV27: 0.017693563 | AW27: 0.002300966 | AX27: 0.008471198 | AY27: 0.003235963 | AZ27: 0.009453217 | BA27: 0.002443439 | BB27: 0.67% | BC27: 0.53% | BD27: 0.60%
A28: Corynebacterium | B28: 0 | C28: 0 | D28: 0 | E28: 0 | F28: 0.000311066 | G28: 0 | H28: 0 | I28: 0 | J28: 0 | K28: 0.015469324 | L28: 0 | M28: 0 | N28: 0 | O28: 0 | P28: 0 | Q28: 0.142060575 | R28: 0 | S28: 0 | T28: 0 | U28: 0 | V28: 0 | W28: 0 | X28: 0 | Y28: 0 | Z28: 0 | AA28: 0 | AB28: 0 | AC28: 0 | AD28: 0.00983751 | AE28: 0.038913363 | AF28: 0 | AG28: 0.048965658 | AH28: 0 | AI28: 0 | AJ28: 0 | AK28: 0 | AL28: 0 | AM28: 0 | AN28: 0 | AO28: 0 | AP28: 0.006265863 | AQ28: 3.34E-05 | AR28: 0 | AS28: 0 | AT28: 0 | AU28: 0.001367241 | AV28: 0.004266533 | AW28: 0 | AX28: 0 | AY28: 0 | AZ28: 0 | BA28: 0.018461538 | BB28: 0.69% | BC28: 0.44% | BD28: 0.55%
A29: Stenotrophomonas | B29: 0 | C29: 0.000192031 | D29: 0 | E29: 0 | F29: 0 | G29: 0 | H29: 0 | I29: 0 | J29: 0 | K29: 0 | L29: 0 | M29: 0 | N29: 4.82E-05 | O29: 0.000343362 | P29: 0 | Q29: 0 | R29: 8.30E-05 | S29: 6.46E-05 | T29: 0 | U29: 0.000434075 | V29: 0 | W29: 0.241311592 | X29: 0 | Y29: 0.000175177 | Z29: 0.000148898 | AA29: 9.74E-05 | AB29: 0 | AC29: 0 | AD29: 4.89E-05 | AE29: 0.002615639 | AF29: 0 | AG29: 0.000254764 | AH29: 0 | AI29: 0 | AJ29: 0 | AK29: 0 | AL29: 0 | AM29: 4.13E-05 | AN29: 0.001019604 | AO29: 0 | AP29: 0 | AQ29: 0 | AR29: 0 | AS29: 0 | AT29: 0 | AU29: 0 | AV29: 0 | AW29: 0 | AX29: 0 | AY29: 0 | AZ29: 0 | BA29: 0.00081448 | BB29: 1.05% | BC29: 0.02% | BD29: 0.48%
A30: Bacillus | B30: 0 | C30: 0 | D30: 0 | E30: 0.000434846 | F30: 0 | G30: 0 | H30: 0 | I30: 0 | J30: 0 | K30: 0 | L30: 0 | M30: 0 | N30: 0 | O30: 0 | P30: 0 | Q30: 0 | R30: 0 | S30: 0 | T30: 0 | U30: 0 | V30: 0 | W30: 0 | X30: 0 | Y30: 0 | Z30: 0 | AA30: 0 | AB30: 0 | AC30: 0 | AD30: 4.89E-05 | AE30: 0 | AF30: 0 | AG30: 0 | AH30: 0 | AI30: 0 | AJ30: 0 | AK30: 0 | AL30: 0 | AM30: 0 | AN30: 0.16721509 | AO30: 0 | AP30: 0 | AQ30: 0 | AR30: 0 | AS30: 0 | AT30: 0 | AU30: 0 | AV30: 0 | AW30: 0 | AX30: 0 | AY30: 0 | AZ30: 0 | BA30: 0 | BB30: 0.00% | BC30: 0.58% | BD30: 0.32%
A31: Ruminococcaceae_[G-2] | B31: 0.002257336 | C31: 0 | D31: 0.000520111 | E31: 0.002971445 | F31: 0.008165487 | G31: 0.000222173 | H31: 0.000331071 | I31: 0.004601614 | J31: 0.002669388 | K31: 0.00065548 | L31: 0.000391064 | M31: 0.000247494 | N31: 0.000192613 | O31: 0.001201768 | P31: 0.010692575 | Q31: 0.000126727 | R31: 0.002323844 | S31: 0.003680269 | T31: 0.001716625 | U31: 0 | V31: 0.001331647 | W31: 0 | X31: 0.002674137 | Y31: 0.000350355 | Z31: 0.00163788 | AA31: 0.000389522 | AB31: 0 | AC31: 0.002528257 | AD31: 0.001908771 | AE31: 0.000550661 | AF31: 0.004149961 | AG31: 0.000968104 | AH31: 0 | AI31: 0.000134844 | AJ31: 0.000692329 | AK31: 0.002994225 | AL31: 0.00133579 | AM31: 0.000165289 | AN31: 0.000185383 | AO31: 0 | AP31: 0.000951777 | AQ31: 0.000200548 | AR31: 0.009963273 | AS31: 0.0092777 | AT31: 0.014921006 | AU31: 0.006904567 | AV31: 0.000752918 | AW31: 0.000843688 | AX31: 0.026609528 | AY31: 0.001049501 | AZ31: 0.002685573 | BA31: 0.000271493 | BB31: 0.20% | BC31: 0.32% | BD31: 0.27%
A32: Staphylococcus | B32: 0.001128668 | C32: 0 | D32: 0.001647018 | E32: 0 | F32: 7.78E-05 | G32: 0.000111086 | H32: 0.001158749 | I32: 0 | J32: 0.000157023 | K32: 0.01396172 | L32: 4.89E-05 | M32: 0 | N32: 0 | O32: 0 | P32: 0.004776379 | Q32: 0.000126727 | R32: 8.30E-05 | S32: 0 | T32: 0.001188433 | U32: 0.022354856 | V32: 0.001331647 | W32: 0.005296358 | X32: 0.004329556 | Y32: 0 | Z32: 0.000744491 | AA32: 0.00632973 | AB32: 0 | AC32: 0.000148721 | AD32: 0.0003426 | AE32: 0.00027533 | AF32: 0.00126609 | AG32: 0 | AH32: 0 | AI32: 0 | AJ32: 0.000138466 | AK32: 0.00919655 | AL32: 4.61E-05 | AM32: 0.004669421 | AN32: 9.27E-05 | AO32: 0.038791159 | AP32: 0 | AQ32: 0 | AR32: 0 | AS32: 0 | AT32: 5.85E-05 | AU32: 0.011826634 | AV32: 0 | AW32: 0 | AX32: 0 | AY32: 0.000612209 | AZ32: 0.000214846 | BA32: 0 | BB32: 0.25% | BC32: 0.26% | BD32: 0.25%
A33: Alloprevotella | B33: 0.009255079 | C33: 9.60E-05 | D33: 0.001560333 | E33: 0.001449485 | F33: 0.002799596 | G33: 0.009775605 | H33: 0.004469459 | I33: 0.00119768 | J33: 0.001334694 | K33: 0.000393288 | L33: 0.000586596 | M33: 0.000247494 | N33: 0 | O33: 0.000557964 | P33: 0.002659574 | Q33: 0 | R33: 0.001659889 | S33: 0.000645661 | T33: 0.000924336 | U33: 0.001844818 | V33: 0.001065317 | W33: 0.000178529 | X33: 0.006112314 | Y33: 0.001401419 | Z33: 0.000694858 | AA33: 0.003116175 | AB33: 7.04E-05 | AC33: 0.002528257 | AD33: 0.001810885 | AE33: 0.00142254 | AF33: 0.002672856 | AG33: 0.001171915 | AH33: 0.000333089 | AI33: 0.000337109 | AJ33: 0.000969261 | AK33: 0.000356455 | AL33: 9.21E-05 | AM33: 0.00107438 | AN33: 0.000463456 | AO33: 0.000360848 | AP33: 0.001189721 | AQ33: 0 | AR33: 0.031843401 | AS33: 0.008694807 | AT33: 0.000175541 | AU33: 0.006767842 | AV33: 0.000752918 | AW33: 0.00138058 | AX33: 0.005979669 | AY33: 0.000787126 | AZ33: 0.00075196 | BA33: 0.001538462 | BB33: 0.21% | BC33: 0.27% | BD33: 0.25%
A34: Peptostreptococcaceae_[XI][G-1] | B34: 0.00248307 | C34: 0 | D34: 0.000953537 | E34: 0.005073199 | F34: 0.000311066 | G34: 0.000999778 | H34: 0.002151962 | I34: 0.00075643 | J34: 0.000235534 | K34: 0.002949659 | L34: 0.004497238 | M34: 0.000309368 | N34: 0.000674146 | O34: 0.019957938 | P34: 0.000325662 | Q34: 0.002027626 | R34: 0.001244917 | S34: 0.010847107 | T34: 0.003037106 | U34: 0.000108519 | V34: 0.002729875 | W34: 0.000357058 | X34: 0.002419458 | Y34: 0.000700709 | Z34: 0.000397062 | AA34: 0.002239751 | AB34: 0 | AC34: 0.002379536 | AD34: 0.001859828 | AE34: 0.000596549 | AF34: 0.000703383 | AG34: 0.003108122 | AH34: 6.66E-05 | AI34: 0.000337109 | AJ34: 0.001107726 | AK34: 0.002709061 | AL34: 0.001243667 | AM34: 0.001033058 | AN34: 0.000185383 | AO34: 0 | AP34: 0.002696701 | AQ34: 0.000902467 | AR34: 0.001289365 | AS34: 0.001214359 | AT34: 0.000819193 | AU34: 0.002392672 | AV34: 0.000376459 | AW34: 0.002300966 | AX34: 0.000797289 | AY34: 0.005947175 | AZ34: 0.003652379 | BA34: 0.00081448 | BB34: 0.28% | BC34: 0.14% | BD34: 0.20%
A35: Megasphaera | B35: 0.000112867 | C35: 0.002112338 | D35: 0.007021498 | E35: 0.001884331 | F35: 0.000855432 | G35: 0.002666074 | H35: 0.00441428 | I35: 0.001701967 | J35: 0 | K35: 0.001376508 | L35: 0.000293298 | M35: 0.000680609 | N35: 0.000192613 | O35: 0.001759732 | P35: 0.000379939 | Q35: 0.00228108 | R35: 0 | S35: 0.005423554 | T35: 0.002508913 | U35: 0.000759631 | V35: 0.000133165 | W35: 0.002796953 | X35: 0.003056157 | Y35: 0 | Z35: 0 | AA35: 0.000194761 | AB35: 0 | AC35: 0.006841166 | AD35: 0.003328113 | AE35: 0.001881424 | AF35: 0.00084406 | AG35: 0.000203811 | AH35: 0.001931917 | AI35: 0.00114617 | AJ35: 0.00166159 | AK35: 0.000356455 | AL35: 0.00239521 | AM35: 0.011115702 | AN35: 0.000139037 | AO35: 0.006134416 | AP35: 0.001586294 | AQ35: 0.001036166 | AR35: 0.000156287 | AS35: 0.000534318 | AT35: 0.006143944 | AU35: 0.000136724 | AV35: 0.000752918 | AW35: 0.001457279 | AX35: 0.000199322 | AY35: 0.000874585 | AZ35: 0.000966806 | BA35: 0 | BB35: =AVERAGE(B35:X35) -> 0.18% | BC35: =AVERAGE(Y35:BA35) -> 0.18% | BD35: =AVERAGE(B35:BA35) -> 0.18%
A36: Aggregatibacter | B36: 0.000677201 | C36: 0.019299088 | D36: 8.67E-05 | E36: 0.001666908 | F36: 0 | G36: 0 | H36: 0.001544998 | I36: 0 | J36: 0.001020649 | K36: 0.000458836 | L36: 0 | M36: 0 | N36: 0 | O36: 0 | P36: 0.000162831 | Q36: 0.000253453 | R36: 0 | S36: 0 | T36: 0.014129143 | U36: 0.000108519 | V36: 0 | W36: 0 | X36: 0.00012734 | Y36: 0 | Z36: 0.000446694 | AA36: 0 | AB36: 0 | AC36: 0.001041047 | AD36: 0 | AE36: 0.00027533 | AF36: 0 | AG36: 0.000254764 | AH36: 0 | AI36: 0.000809061 | AJ36: 0 | AK36: 0.000427746 | AL36: 0.001243667 | AM36: 0.000247934 | AN36: 4.63E-05 | AO36: 9.02E-05 | AP36: 0 | AQ36: 0 | AR36: 0.006095179 | AS36: 0.001360082 | AT36: 0.002106495 | AU36: 0 | AV36: 0.005144937 | AW36: 0.000153398 | AX36: 0.01554714 | AY36: 0 | AZ36: 0 | BA36: 0.001538462 | BB36: 0.17% | BC36: 0.13% | BD36: 0.15%
A37: SR1_[G-1] | B37: 0.003386005 | C37: 0 | D37: 0 | E37: 0.000869691 | F37: 0.000388833 | G37: 0 | H37: 0.000551785 | I37: 0.001260716 | J37: 0.000471069 | K37: 0.000393288 | L37: 0.000586596 | M37: 0.000247494 | N37: 0.000337073 | O37: 0.018112365 | P37: 0.000108554 | Q37: 0 | R37: 0.000414972 | S37: 0.004003099 | T37: 0.006602403 | U37: 0.000434075 | V37: 0.004793928 | W37: 0 | X37: 0.00025468 | Y37: 0.003853902 | Z37: 0.005807028 | AA37: 0.000292141 | AB37: 0.000140835 | AC37: 0.000148721 | AD37: 0.004160141 | AE37: 9.18E-05 | AF37: 7.03E-05 | AG37: 0.005197187 | AH37: 0 | AI37: 0.000337109 | AJ37: 0 | AK37: 0.000499038 | AL37: 0.000322432 | AM37: 4.13E-05 | AN37: 0 | AO37: 0 | AP37: 0.001586294 | AQ37: 0 | AR37: 0.000781433 | AS37: 0.001602953 | AT37: 0.000234055 | AU37: 0 | AV37: 0 | AW37: 0 | AX37: 0 | AY37: 8.75E-05 | AZ37: 0.000107423 | BA37: 0.001085973 | BB37: 0.19% | BC37: 0.09% | BD37: 0.13%
A38: Catonella | B38: 0.001354402 | C38: 0.0012482 | D38: 0.000260055 | E38: 0.000724743 | F38: 0.0002333 | G38: 0.001444124 | H38: 0.001158749 | I38: 0.000252143 | J38: 0.001177671 | K38: 0.001900891 | L38: 4.89E-05 | M38: 0 | N38: 0.000240767 | O38: 0.001716812 | P38: 0 | Q38: 0.000126727 | R38: 0.002489833 | S38: 0.000516529 | T38: 0.00066024 | U38: 0.001627781 | V38: 0.001664558 | W38: 0.000892645 | X38: 0.007003693 | Y38: 0.000963476 | Z38: 0.001836411 | AA38: 0.001850229 | AB38: 0 | AC38: 0.000594884 | AD38: 0.004111198 | AE38: 0.000550661 | AF38: 0.001547443 | AG38: 0.002241924 | AH38: 0.000133236 | AI38: 0.000134844 | AJ38: 0.000276932 | AK38: 0.000998075 | AL38: 9.21E-05 | AM38: 0.00053719 | AN38: 0.000185383 | AO38: 0 | AP38: 0.001665609 | AQ38: 0.000100274 | AR38: 0.00046886 | AS38: 0.001894399 | AT38: 0.000351083 | AU38: 0.001503965 | AV38: 0.00100389 | AW38: 0.001917472 | AX38: 0 | AY38: 0.002011545 | AZ38: 0.002041036 | BA38: 0.001357466 | BB38: 0.12% | BC38: 0.10% | BD38: 0.11%
A39: Selenomonas | B39: 0 | C39: 0 | D39: 0.001213592 | E39: 0.002754022 | F39: 0.004432693 | G39: 0 | H39: 0.001986426 | I39: 0.00434947 | J39: 0.000942137 | K39: 0 | L39: 0 | M39: 0.000123747 | N39: 4.82E-05 | O39: 0.000901326 | P39: 0.004233608 | Q39: 0.000126727 | R39: 0.000414972 | S39: 0.004713326 | T39: 0.000132048 | U39: 0.00086815 | V39: 0 | W39: 0 | X39: 0.001018719 | Y39: 0 | Z39: 0 | AA39: 9.74E-05 | AB39: 0 | AC39: 0.000892326 | AD39: 0.000244714 | AE39: 0.000137665 | AF39: 0.000914398 | AG39: 5.10E-05 | AH39: 0.004530011 | AI39: 0.000943905 | AJ39: 0.000276932 | AK39: 0 | AL39: 0.001427913 | AM39: 0.000413223 | AN39: 9.27E-05 | AO39: 0.000180424 | AP39: 0.000237944 | AQ39: 0.000668494 | AR39: 0.001250293 | AS39: 9.71E-05 | AT39: 0.005207724 | AU39: 0.001503965 | AV39: 0.005897854 | AW39: 0.000230097 | AX39: 0.000996612 | AY39: 0.000612209 | AZ39: 0 | BA39: 0 | BB39: 0.12% | BC39: 0.09% | BD39: 0.11%
A40: Halomonas | B40: 0.0003386 | C40: 0 | D40: 0 | E40: 0 | F40: 0 | G40: 0.000777605 | H40: 0 | I40: 0 | J40: 0 | K40: 6.55E-05 | L40: 4.89E-05 | M40: 0 | N40: 0 | O40: 0.00433495 | P40: 0 | Q40: 0.000126727 | R40: 0 | S40: 0.000516529 | T40: 0 | U40: 0.003038524 | V40: 0.000332912 | W40: 0.000416567 | X40: 0 | Y40: 0.001226242 | Z40: 0.002531269 | AA40: 0 | AB40: 0.000633758 | AC40: 0.001784652 | AD40: 0.000587314 | AE40: 0.001560206 | AF40: 0.000140677 | AG40: 0.000917151 | AH40: 0.000199853 | AI40: 0 | AJ40: 0.000692329 | AK40: 0 | AL40: 0 | AM40: 0.000165289 | AN40: 0.018352876 | AO40: 0.000541272 | AP40: 0.000317259 | AQ40: 0.000200548 | AR40: 0 | AS40: 0 | AT40: 0 | AU40: 0 | AV40: 0 | AW40: 0 | AX40: 0 | AY40: 0 | AZ40: 0 | BA40: 0.010497738 | BB40: 0.04% | BC40: 0.14% | BD40: 0.10%
A41: Lachnospiraceae_[G-3] | B41: 0.002031603 | C41: 0 | D41: 0 | E41: 0.001956805 | F41: 0 | G41: 0 | H41: 5.52E-05 | I41: 0.003088754 | J41: 0.004161105 | K41: 0.00032774 | L41: 4.89E-05 | M41: 0 | N41: 4.82E-05 | O41: 4.29E-05 | P41: 0 | Q41: 0 | R41: 0.003817744 | S41: 0 | T41: 0.004225538 | U41: 0.000108519 | V41: 0.007190892 | W41: 0 | X41: 0.00012734 | Y41: 0.001751774 | Z41: 0.007792337 | AA41: 0 | AB41: 0 | AC41: 0.000148721 | AD41: 0.000832028 | AE41: 9.18E-05 | AF41: 0.000140677 | AG41: 0.002394782 | AH41: 0 | AI41: 0 | AJ41: 0.000138466 | AK41: 0 | AL41: 0 | AM41: 4.13E-05 | AN41: 0 | AO41: 0 | AP41: 0.002141497 | AQ41: 0 | AR41: 0.003829022 | AS41: 0 | AT41: 0.000117028 | AU41: 0 | AV41: 0 | AW41: 0 | AX41: 9.97E-05 | AY41: 0 | AZ41: 0 | BA41: 0.000542986 | BB41: 0.12% | BC41: 0.07% | BD41: 0.09%
A42: Alloscardovia | B42: 0 | C42: 0 | D42: 0 | E42: 0 | F42: 0 | G42: 0 | H42: 0 | I42: 0 | J42: 0 | K42: 0 | L42: 0 | M42: 0 | N42: 0 | O42: 0 | P42: 0.001845419 | Q42: 0.000126727 | R42: 0 | S42: 0 | T42: 0 | U42: 0 | V42: 0 | W42: 0 | X42: 0 | Y42: 0 | Z42: 0 | AA42: 0 | AB42: 0 | AC42: 0.000297442 | AD42: 0 | AE42: 0.000780103 | AF42: 0.000211015 | AG42: 0 | AH42: 0.020651522 | AI42: 0 | AJ42: 0 | AK42: 7.13E-05 | AL42: 9.21E-05 | AM42: 0.000123967 | AN42: 4.63E-05 | AO42: 0.01398286 | AP42: 0 | AQ42: 0.004712882 | AR42: 0 | AS42: 0 | AT42: 0.000585138 | AU42: 0.002461034 | AV42: 0 | AW42: 0 | AX42: 0 | AY42: 0 | AZ42: 0 | BA42: 0 | BB42: 0.01% | BC42: 0.15% | BD42: 0.09%
A43: Parvimonas | B43: 0.003047404 | C43: 9.60E-05 | D43: 0 | E43: 7.25E-05 | F43: 0 | G43: 0.000111086 | H43: 0.000441428 | I43: 0 | J43: 0.010127974 | K43: 0.000524384 | L43: 0.000831011 | M43: 0 | N43: 0 | O43: 0.000214601 | P43: 0.002876683 | Q43: 0.000253453 | R43: 0.000663956 | S43: 0 | T43: 0.011884326 | U43: 0 | V43: 0 | W43: 0 | X43: 0 | Y43: 0 | Z43: 0.000198531 | AA43: 9.74E-05 | AB43: 0 | AC43: 0 | AD43: 0.000783085 | AE43: 0.000137665 | AF43: 0.000140677 | AG43: 0.000815245 | AH43: 0 | AI43: 0.000134844 | AJ43: 0.000276932 | AK43: 0.000855493 | AL43: 0 | AM43: 8.26E-05 | AN43: 0.000139037 | AO43: 0 | AP43: 0.000237944 | AQ43: 0.000267398 | AR43: 0.001719153 | AS43: 0.000680041 | AT43: 0.000292569 | AU43: 6.84E-05 | AV43: 0 | AW43: 7.67E-05 | AX43: 0.001395256 | AY43: 0.000262375 | AZ43: 0.000859383 | BA43: 0.000633484 | BB43: 0.14% | BC43: 0.04% | BD43: 0.08%
A44: Bergeyella | B44: 0.002708804 | C44: 0.00144023 | D44: 0.001647018 | E44: 0.000362371 | F44: 0.0002333 | G44: 0.000888691 | H44: 0.000110357 | I44: 0.000504286 | J44: 0.000942137 | K44: 0.004326167 | L44: 0 | M44: 6.19E-05 | N44: 4.82E-05 | O44: 0.000128761 | P44: 0.000108554 | Q44: 0 | R44: 0.00373475 | S44: 0 | T44: 0.001320481 | U44: 0.001085187 | V44: 0.001065317 | W44: 0.000357058 | X44: 0.00025468 | Y44: 0.001839362 | Z44: 0.002084574 | AA44: 0.000486902 | AB44: 0.000704176 | AC44: 0 | AD44: 0.000244714 | AE44: 0.000321219 | AF44: 0.000351692 | AG44: 0.000713339 | AH44: 0 | AI44: 0.000539374 | AJ44: 0.000276932 | AK44: 0.000570329 | AL44: 0.000736988 | AM44: 0.000165289 | AN44: 0.000880567 | AO44: 0 | AP44: 0.000396574 | AQ44: 0.000334247 | AR44: 0.000898648 | AS44: 0.001408656 | AT44: 0.000292569 | AU44: 0.000136724 | AV44: 0 | AW44: 7.67E-05 | AX44: 0.000199322 | AY44: 0 | AZ44: 0.000537115 | BA44: 9.05E-05 | BB44: 0.09% | BC44: 0.05% | BD44: 0.07%
A45: TM7_[G-3] | B45: 0.0003386 | C45: 0.001728277 | D45: 0.000606796 | E45: 0.001232063 | F45: 0.000544366 | G45: 0.000222173 | H45: 0.001158749 | I45: 0.001071609 | J45: 0.001805763 | K45: 0.00098322 | L45: 0.001222076 | M45: 0.000866229 | N45: 0.000770453 | O45: 0.000515044 | P45: 0.001248372 | Q45: 0.000253453 | R45: 0.000331978 | S45: 0.000387397 | T45: 0.000924336 | U45: 0.000108519 | V45: 0 | W45: 0.000178529 | X45: 0.000764039 | Y45: 0 | Z45: 0.000496327 | AA45: 0.000194761 | AB45: 0 | AC45: 0.000446163 | AD45: 0.000929914 | AE45: 0.000183554 | AF45: 0.00084406 | AG45: 0.000101906 | AH45: 0 | AI45: 6.74E-05 | AJ45: 0 | AK45: 0.001853568 | AL45: 0 | AM45: 0.000371901 | AN45: 0.000185383 | AO45: 0 | AP45: 0.000317259 | AQ45: 0 | AR45: 0.001289365 | AS45: 0.001748676 | AT45: 0.001287303 | AU45: 0.000957069 | AV45: 0.001882294 | AW45: 0.000613591 | AX45: 0.000398645 | AY45: 0.000787126 | AZ45: 0.000859383 | BA45: 0 | BB45: 0.08% | BC45: 0.05% | BD45: 0.06%
A46: Eikenella | B46: 0.000112867 | C46: 0.000960154 | D46: 0.000260055 | E46: 0.001087114 | F46: 0.000622132 | G46: 0 | H46: 0.002814104 | I46: 0.001071609 | J46: 0.001020649 | K46: 0.002031987 | L46: 0.000195532 | M46: 0.000742482 | N46: 0.002552126 | O46: 0 | P46: 0.000217108 | Q46: 0.00038018 | R46: 0.000497967 | S46: 0 | T46: 0.002640961 | U46: 0.000108519 | V46: 0.000932153 | W46: 5.95E-05 | X46: 0.00012734 | Y46: 0.000175177 | Z46: 0.000148898 | AA46: 9.74E-05 | AB46: 0 | AC46: 0 | AD46: 4.89E-05 | AE46: 0 | AF46: 0 | AG46: 0 | AH46: 6.66E-05 | AI46: 0.000539374 | AJ46: 0 | AK46: 0.002281315 | AL46: 0.000506679 | AM46: 0.000413223 | AN46: 0 | AO46: 9.02E-05 | AP46: 0.000237944 | AQ46: 0.000133699 | AR46: 0.00140658 | AS46: 4.86E-05 | AT46: 0.000760679 | AU46: 0 | AV46: 0.000125486 | AW46: 0.000306796 | AX46: 0.002192545 | AY46: 8.75E-05 | AZ46: 0.001718767 | BA46: 0 | BB46: 0.08% | BC46: 0.04% | BD46: 0.06%
A47: Escherichia | B47: 0 | C47: 0 | D47: 0 | E47: 0 | F47: 0.029240221 | G47: 0 | H47: 0 | I47: 0 | J47: 0 | K47: 0 | L47: 0 | M47: 0 | N47: 0 | O47: 0 | P47: 0 | Q47: 0 | R47: 0 | S47: 0 | T47: 0 | U47: 0 | V47: 0 | W47: 0 | X47: 0 | Y47: 0 | Z47: 0 | AA47: 0 | AB47: 0 | AC47: 0 | AD47: 0 | AE47: 0 | AF47: 0 | AG47: 0 | AH47: 0 | AI47: 0 | AJ47: 0 | AK47: 0 | AL47: 0 | AM47: 0 | AN47: 0 | AO47: 0 | AP47: 0 | AQ47: 0 | AR47: 0 | AS47: 0 | AT47: 0 | AU47: 0 | AV47: 0 | AW47: 0 | AX47: 0 | AY47: 0 | AZ47: 0 | BA47: 0 | BB47: 0.13% | BC47: 0.00% | BD47: 0.06%
A48: Abiotrophia | B48: 0.000790068 | C48: 0 | D48: 0.000346741 | E48: 7.25E-05 | F48: 0 | G48: 0 | H48: 5.52E-05 | I48: 0 | J48: 0 | K48: 0.000131096 | L48: 9.78E-05 | M48: 0 | N48: 0 | O48: 4.29E-05 | P48: 5.43E-05 | Q48: 0.000253453 | R48: 8.30E-05 | S48: 0.000129132 | T48: 0.000924336 | U48: 0.001410743 | V48: 0.000133165 | W48: 0.002499405 | X48: 0 | Y48: 0.005518087 | Z48: 0.000595593 | AA48: 9.74E-05 | AB48: 7.04E-05 | AC48: 0 | AD48: 0.001321457 | AE48: 9.18E-05 | AF48: 0.000211015 | AG48: 0.001426679 | AH48: 0.000133236 | AI48: 0.001483279 | AJ48: 0 | AK48: 0.000570329 | AL48: 4.61E-05 | AM48: 0.000123967 | AN48: 0.000602493 | AO48: 0.000180424 | AP48: 0 | AQ48: 0.000467946 | AR48: 0 | AS48: 0 | AT48: 0 | AU48: 0.000136724 | AV48: 0 | AW48: 0 | AX48: 9.97E-05 | AY48: 0.000174917 | AZ48: 0.000107423 | BA48: 0.003076923 | BB48: 0.03% | BC48: 0.06% | BD48: 0.05%
A49: Bifidobacterium | B49: 0 | C49: 0 | D49: 0 | E49: 0 | F49: 7.78E-05 | G49: 0 | H49: 0 | I49: 0 | J49: 0 | K49: 0 | L49: 4.89E-05 | M49: 0 | N49: 0 | O49: 0 | P49: 0.013840643 | Q49: 0.000506907 | R49: 0 | S49: 0 | T49: 0 | U49: 0 | V49: 0 | W49: 0 | X49: 0 | Y49: 0 | Z49: 4.96E-05 | AA49: 0 | AB49: 0 | AC49: 0 | AD49: 0 | AE49: 0.000367107 | AF49: 0.000633045 | AG49: 0 | AH49: 0 | AI49: 0 | AJ49: 0 | AK49: 0 | AL49: 0.002487333 | AM49: 4.13E-05 | AN49: 0 | AO49: 0.001894452 | AP49: 0 | AQ49: 0 | AR49: 0 | AS49: 0 | AT49: 0.001521358 | AU49: 0.000820345 | AV49: 0 | AW49: 0 | AX49: 0 | AY49: 0.000174917 | AZ49: 0.000214846 | BA49: 0 | BB49: 0.06% | BC49: 0.03% | BD49: 0.04%
A50: TM7_[G-6] | B50: 0 | C50: 0.007489198 | D50: 0.00017337 | E50: 0.000362371 | F50: 0 | G50: 0 | H50: 0.000220714 | I50: 0.000567322 | J50: 0 | K50: 6.55E-05 | L50: 0 | M50: 0 | N50: 4.82E-05 | O50: 4.29E-05 | P50: 0.000705601 | Q50: 0 | R50: 0.000331978 | S50: 0 | T50: 0 | U50: 0 | V50: 0 | W50: 0.000833135 | X50: 0 | Y50: 0.001226242 | Z50: 0.000148898 | AA50: 0 | AB50: 7.04E-05 | AC50: 0 | AD50: 0 | AE50: 9.18E-05 | AF50: 0.001125413 | AG50: 0.000203811 | AH50: 0 | AI50: 0.000202265 | AJ50: 0.000415397 | AK50: 0.001354531 | AL50: 0 | AM50: 0 | AN50: 0.000139037 | AO50: 0 | AP50: 0 | AQ50: 0 | AR50: 0.003516449 | AS50: 9.71E-05 | AT50: 0 | AU50: 0.002255947 | AV50: 0.000125486 | AW50: 0 | AX50: 0 | AY50: 0 | AZ50: 0 | BA50: 0.000361991 | BB50: 0.05% | BC50: 0.04% | BD50: 0.04%
A51: Cronobacter | B51: 0 | C51: 0.000672108 | D51: 0.000260055 | E51: 0.000144949 | F51: 0.0002333 | G51: 0.000333259 | H51: 0.000110357 | I51: 0.000567322 | J51: 0.000235534 | K51: 0.000524384 | L51: 9.78E-05 | M51: 0.001794332 | N51: 0.000818606 | O51: 0 | P51: 0 | Q51: 0.000126727 | R51: 0.000663956 | S51: 0 | T51: 0.000396144 | U51: 0 | V51: 0.000199747 | W51: 5.95E-05 | X51: 0 | Y51: 0.000175177 | Z51: 4.96E-05 | AA51: 0.000194761 | AB51: 0.000915428 | AC51: 0.000148721 | AD51: 0 | AE51: 9.18E-05 | AF51: 7.03E-05 | AG51: 0 | AH51: 0.001065885 | AI51: 0.000134844 | AJ51: 0.000969261 | AK51: 0.000285164 | AL51: 0.000921234 | AM51: 0 | AN51: 0 | AO51: 9.02E-05 | AP51: 0.000555203 | AQ51: 0.000267398 | AR51: 0.000351645 | AS51: 0.000242872 | AT51: 0.00046811 | AU51: 0 | AV51: 0.00200778 | AW51: 0.000536892 | AX51: 0.000199322 | AY51: 0.000874585 | AZ51: 0.001396498 | BA51: 0.000180995 | BB51: 0.03% | BC51: 0.04% | BD51: 0.04%
A52: Vibrio | B52: 0 | C52: 0 | D52: 0 | E52: 0 | F52: 0 | G52: 0.000222173 | H52: 0 | I52: 0 | J52: 0 | K52: 0 | L52: 0 | M52: 0 | N52: 0 | O52: 0.001201768 | P52: 0 | Q52: 0 | R52: 0 | S52: 0.000129132 | T52: 0 | U52: 0.000651112 | V52: 6.66E-05 | W52: 0 | X52: 0 | Y52: 0.000350355 | Z52: 0.001141553 | AA52: 0 | AB52: 0.000140835 | AC52: 0.000148721 | AD52: 0.000195771 | AE52: 0.000412996 | AF52: 0 | AG52: 0.000152858 | AH52: 0 | AI52: 6.74E-05 | AJ52: 0.000276932 | AK52: 0 | AL52: 0 | AM52: 0 | AN52: 0.009778931 | AO52: 9.02E-05 | AP52: 0 | AQ52: 0 | AR52: 0 | AS52: 0 | AT52: 0 | AU52: 0 | AV52: 0 | AW52: 0 | AX52: 0 | AY52: 0 | AZ52: 0 | BA52: 0.003348416 | BB52: 0.01% | BC52: 0.06% | BD52: 0.04%
A53: Lactobacillus | B53: 0 | C53: 0 | D53: 0 | E53: 0 | F53: 0 | G53: 0 | H53: 0 | I53: 0 | J53: 0 | K53: 0 | L53: 0 | M53: 0 | N53: 0 | O53: 0 | P53: 0 | Q53: 0 | R53: 0 | S53: 0 | T53: 0 | U53: 0 | V53: 0 | W53: 0 | X53: 0 | Y53: 0 | Z53: 0 | AA53: 0 | AB53: 0 | AC53: 0.000148721 | AD53: 0 | AE53: 0.001881424 | AF53: 0 | AG53: 0 | AH53: 0.014122976 | AI53: 6.74E-05 | AJ53: 0 | AK53: 0 | AL53: 0.000138185 | AM53: 0 | AN53: 0 | AO53: 0 | AP53: 0 | AQ53: 0.000701919 | AR53: 0 | AS53: 0 | AT53: 0.000117028 | AU53: 0 | AV53: 0 | AW53: 0 | AX53: 0 | AY53: 0 | AZ53: 0 | BA53: 0 | BB53: 0.00% | BC53: 0.06% | BD53: 0.03%
A54: Bacteroidales_[G-2] | B54: 0.0003386 | C54: 0 | D54: 0 | E54: 0.003333816 | F54: 0 | G54: 0.000111086 | H54: 0.003476246 | I54: 0.001134644 | J54: 0 | K54: 0.000196644 | L54: 0 | M54: 0 | N54: 4.82E-05 | O54: 0 | P54: 0.000108554 | Q54: 0.000126727 | R54: 0.000580961 | S54: 0 | T54: 0.000528192 | U54: 0.000542594 | V54: 0.000266329 | W54: 0.000535587 | X54: 0.00025468 | Y54: 0.000262766 | Z54: 0.000446694 | AA54: 9.74E-05 | AB54: 0 | AC54: 0 | AD54: 0.000293657 | AE54: 4.59E-05 | AF54: 0.000351692 | AG54: 0.000407623 | AH54: 0 | AI54: 0.000202265 | AJ54: 0.000138466 | AK54: 0.00064162 | AL54: 4.61E-05 | AM54: 4.13E-05 | AN54: 0 | AO54: 0 | AP54: 0 | AQ54: 0 | AR54: 0.001211221 | AS54: 0.000145723 | AT54: 0.000175541 | AU54: 0 | AV54: 0 | AW54: 0 | AX54: 0 | AY54: 0 | AZ54: 0 | BA54: 0.000180995 | BB54: 0.05% | BC54: 0.02% | BD54: 0.03%
A55: Filifactor | B55: 0.001015801 | C55: 0 | D55: 0 | E55: 0 | F55: 0 | G55: 0 | H55: 0 | I55: 0 | J55: 0.002433854 | K55: 0 | L55: 0 | M55: 0 | N55: 0 | O55: 0.000472123 | P55: 0.000108554 | Q55: 0 | R55: 0.002821811 | S55: 0 | T55: 0.003037106 | U55: 0.000217037 | V55: 0 | W55: 0 | X55: 0 | Y55: 0.000875887 | Z55: 0.001240818 | AA55: 9.74E-05 | AB55: 0 | AC55: 0.000148721 | AD55: 4.89E-05 | AE55: 0.000137665 | AF55: 0.000211015 | AG55: 0.000101906 | AH55: 0 | AI55: 0 | AJ55: 0 | AK55: 0.000142582 | AL55: 0 | AM55: 4.13E-05 | AN55: 0.00032442 | AO55: 9.02E-05 | AP55: 0.000158629 | AQ55: 0 | AR55: 7.81E-05 | AS55: 0 | AT55: 0 | AU55: 0 | AV55: 0 | AW55: 0 | AX55: 0.000199322 | AY55: 0.000174917 | AZ55: 0 | BA55: 0.000904977 | BB55: 0.04% | BC55: 0.02% | BD55: 0.03%
A56: Cryptobacterium | B56: 0 | C56: 9.60E-05 | D56: 0 | E56: 0.000144949 | F56: 0.000155533 | G56: 0 | H56: 0 | I56: 0 | J56: 0 | K56: 0 | L56: 9.78E-05 | M56: 0 | N56: 0 | O56: 0 | P56: 0.000488493 | Q56: 0 | R56: 0 | S56: 0 | T56: 0 | U56: 0 | V56: 0 | W56: 0 | X56: 0 | Y56: 0 | Z56: 0 | AA56: 0 | AB56: 0 | AC56: 0.000148721 | AD56: 0 | AE56: 0.000367107 | AF56: 0.000281353 | AG56: 0 | AH56: 0.001398974 | AI56: 0 | AJ56: 0 | AK56: 0 | AL56: 0.005757715 | AM56: 0.000289256 | AN56: 4.63E-05 | AO56: 9.02E-05 | AP56: 0 | AQ56: 0.000367672 | AR56: 0 | AS56: 0 | AT56: 0.003101229 | AU56: 0.00068362 | AV56: 0.000125486 | AW56: 0 | AX56: 0 | AY56: 0 | AZ56: 0.000429692 | BA56: 0 | BB56: 0.00% | BC56: 0.05% | BD56: 0.03%
A57: Lautropia | B57: 0.000112867 | C57: 9.60E-05 | D57: 0.00017337 | E57: 0.00050732 | F57: 0 | G57: 0.000222173 | H57: 5.52E-05 | I57: 6.30E-05 | J57: 7.85E-05 | K57: 0.000852124 | L57: 0.000244415 | M57: 0.000185621 | N57: 4.82E-05 | O57: 0 | P57: 0 | Q57: 0 | R57: 0.000165989 | S57: 0 | T57: 0 | U57: 0.000108519 | V57: 0 | W57: 0.000714116 | X57: 0.000509359 | Y57: 0.000175177 | Z57: 0.000248164 | AA57: 9.74E-05 | AB57: 7.04E-05 | AC57: 0.000148721 | AD57: 0.000880971 | AE57: 0.00027533 | AF57: 0 | AG57: 0.00035667 | AH57: 6.66E-05 | AI57: 0.000134844 | AJ57: 0.000415397 | AK57: 0 | AL57: 0.000414556 | AM57: 8.26E-05 | AN57: 0.001992863 | AO57: 0 | AP57: 0 | AQ57: 0.001370412 | AR57: 0.000390717 | AS57: 4.86E-05 | AT57: 0.000526624 | AU57: 0.000136724 | AV57: 0 | AW57: 0 | AX57: 0 | AY57: 0 | AZ57: 0.000966806 | BA57: 0.000995475 | BB57: 0.02% | BC57: 0.03% | BD57: 0.03%
A58: Butyrivibrio | B58: 0 | C58: 0 | D58: 0 | E58: 0.000362371 | F58: 0.000466599 | G58: 0.000222173 | H58: 5.52E-05 | I58: 0.000126072 | J58: 0.000157023 | K58: 0.001048768 | L58: 0 | M58: 0 | N58: 0.00043338 | O58: 0.000643804 | P58: 0.000651324 | Q58: 0.00038018 | R58: 0 | S58: 0.004067665 | T58: 0.000264096 | U58: 0.000434075 | V58: 0 | W58: 0 | X58: 0 | Y58: 8.76E-05 | Z58: 0 | AA58: 0 | AB58: 0 | AC58: 0 | AD58: 0.000146829 | AE58: 0 | AF58: 0.00042203 | AG58: 0 | AH58: 0 | AI58: 0 | AJ58: 0 | AK58: 0.000499038 | AL58: 4.61E-05 | AM58: 0 | AN58: 0 | AO58: 0 | AP58: 0.000237944 | AQ58: 0.000200548 | AR58: 0.00070329 | AS58: 4.86E-05 | AT58: 0.000234055 | AU58: 0.000820345 | AV58: 0.000376459 | AW58: 0 | AX58: 9.97E-05 | AY58: 0 | AZ58: 0 | BA58: 9.05E-05 | BB58: 0.04% | BC58: 0.01% | BD58: 0.03%
A59: Treponema | B59: 0 | C59: 0 | D59: 0 | E59: 0 | F59: 0 | G59: 0 | H59: 0 | I59: 6.30E-05 | J59: 0.006830494 | K59: 0.000131096 | L59: 9.78E-05 | M59: 0 | N59: 0 | O59: 0 | P59: 0 | Q59: 0 | R59: 0.000995933 | S59: 0 | T59: 0.001584577 | U59: 0 | V59: 0 | W59: 0 | X59: 0 | Y59: 0.000175177 | Z59: 0 | AA59: 9.74E-05 | AB59: 0 | AC59: 0 | AD59: 0.000244714 | AE59: 0 | AF59: 0 | AG59: 0 | AH59: 0 | AI59: 0 | AJ59: 0 | AK59: 0.000285164 | AL59: 0 | AM59: 0 | AN59: 0 | AO59: 0 | AP59: 0 | AQ59: 0 | AR59: 0.00046886 | AS59: 0.002137271 | AT59: 0 | AU59: 0 | AV59: 0 | AW59: 0 | AX59: 0 | AY59: 0 | AZ59: 0 | BA59: 9.05E-05 | BB59: 0.04% | BC59: 0.01% | BD59: 0.03%
A60: Dialister | B60: 0 | C60: 0.000288046 | D60: 0 | E60: 0.001956805 | F60: 0.000544366 | G60: 0 | H60: 0.000551785 | I60: 0 | J60: 0 | K60: 6.55E-05 | L60: 0.000342181 | M60: 0 | N60: 0 | O60: 0 | P60: 5.43E-05 | Q60: 0 | R60: 0.001327911 | S60: 0 | T60: 0.000264096 | U60: 0 | V60: 6.66E-05 | W60: 0 | X60: 0.00012734 | Y60: 0 | Z60: 0 | AA60: 0 | AB60: 0 | AC60: 0 | AD60: 0.0006852 | AE60: 0.000229442 | AF60: 7.03E-05 | AG60: 0.000152858 | AH60: 0 | AI60: 0 | AJ60: 0 | AK60: 7.13E-05 | AL60: 4.61E-05 | AM60: 4.13E-05 | AN60: 0 | AO60: 0 | AP60: 0.000475888 | AQ60: 0 | AR60: 0.001094006 | AS60: 0.000194297 | AT60: 0.000175541 | AU60: 6.84E-05 | AV60: 0 | AW60: 0 | AX60: 0 | AY60: 8.75E-05 | AZ60: 0 | BA60: 0 | BB60: 0.02% | BC60: 0.01% | BD60: 0.02%
A61: Peptococcus | B61: 0.0003386 | C61: 0 | D61: 0 | E61: 0.000289897 | F61: 0 | G61: 0 | H61: 5.52E-05 | I61: 0 | J61: 0.000157023 | K61: 0.000196644 | L61: 4.89E-05 | M61: 0 | N61: 0 | O61: 0.001673892 | P61: 0 | Q61: 0 | R61: 8.30E-05 | S61: 6.46E-05 | T61: 0.000264096 | U61: 0 | V61: 6.66E-05 | W61: 0 | X61: 0.00038202 | Y61: 0.000175177 | Z61: 0.00054596 | AA61: 0.000486902 | AB61: 0 | AC61: 0 | AD61: 0.000391543 | AE61: 0 | AF61: 0 | AG61: 0.000407623 | AH61: 0 | AI61: 6.74E-05 | AJ61: 0 | AK61: 0 | AL61: 0 | AM61: 0 | AN61: 9.27E-05 | AO61: 0 | AP61: 0.000317259 | AQ61: 0 | AR61: 0.000195358 | AS61: 0.000291446 | AT61: 0 | AU61: 0.00068362 | AV61: 0 | AW61: 0 | AX61: 0 | AY61: 0 | AZ61: 0 | BA61: 0.000452489 | BB61: 0.02% | BC61: 0.01% | BD61: 0.01%
A62: Moraxella | B62: 0.000112867 | C62: 0 | D62: 0 | E62: 0 | F62: 0 | G62: 0 | H62: 0 | I62: 0 | J62: 0 | K62: 6.55E-05 | L62: 0 | M62: 0 | N62: 0 | O62: 0.000987167 | P62: 0 | Q62: 0.000126727 | R62: 0 | S62: 0 | T62: 0.000132048 | U62: 0.000434075 | V62: 6.66E-05 | W62: 0.000119019 | X62: 0 | Y62: 8.76E-05 | Z62: 0.000297796 | AA62: 9.74E-05 | AB62: 0.000211253 | AC62: 0 | AD62: 9.79E-05 | AE62: 0.000137665 | AF62: 0 | AG62: 0.000101906 | AH62: 0 | AI62: 0 | AJ62: 0.000415397 | AK62: 0 | AL62: 0 | AM62: 0 | AN62: 0.002549011 | AO62: 0 | AP62: 7.93E-05 | AQ62: 3.34E-05 | AR62: 0 | AS62: 0 | AT62: 0 | AU62: 0 | AV62: 0 | AW62: 0 | AX62: 0 | AY62: 0 | AZ62: 0 | BA62: 0.001357466 | BB62: 0.01% | BC62: 0.02% | BD62: 0.01%
A63: Propionibacterium | B63: 0.000112867 | C63: 0.000192031 | D63: 0 | E63: 0.000289897 | F63: 0 | G63: 0 | H63: 0.000165536 | I63: 0 | J63: 0 | K63: 0.000458836 | L63: 0.000195532 | M63: 0 | N63: 0 | O63: 0 | P63: 0 | Q63: 0.000126727 | R63: 8.30E-05 | S63: 0.000129132 | T63: 0.000396144 | U63: 0.000217037 | V63: 0 | W63: 5.95E-05 | X63: 0 | Y63: 0.000875887 | Z63: 0.000347429 | AA63: 0.000194761 | AB63: 0 | AC63: 0 | AD63: 0.000391543 | AE63: 0.000367107 | AF63: 0.000140677 | AG63: 0.000203811 | AH63: 0 | AI63: 0.000337109 | AJ63: 0.000138466 | AK63: 0.000427746 | AL63: 0.000368494 | AM63: 0.000165289 | AN63: 0 | AO63: 0 | AP63: 0 | AQ63: 0 | AR63: 0 | AS63: 0.000145723 | AT63: 5.85E-05 | AU63: 0 | AV63: 0 | AW63: 0 | AX63: 0 | AY63: 0 | AZ63: 0 | BA63: 0.000361991 | BB63: 0.01% | BC63: 0.02% | BD63: 0.01%
A64: Acinetobacter | B64: 0 | C64: 0 | D64: 0 | E64: 0 | F64: 0 | G64: 0 | H64: 0 | I64: 0 | J64: 0 | K64: 0 | L64: 0 | M64: 0 | N64: 0 | O64: 0 | P64: 0 | Q64: 0 | R64: 0 | S64: 0 | T64: 0 | U64: 0 | V64: 0 | W64: 0.005772435 | X64: 0 | Y64: 0 | Z64: 0 | AA64: 0 | AB64: 0 | AC64: 0 | AD64: 0 | AE64: 0.000183554 | AF64: 0 | AG64: 0 | AH64: 0 | AI64: 0 | AJ64: 0 | AK64: 0 | AL64: 0 | AM64: 0 | AN64: 0 | AO64: 0 | AP64: 0 | AQ64: 0 | AR64: 0 | AS64: 0 | AT64: 0 | AU64: 0 | AV64: 0 | AW64: 0 | AX64: 0 | AY64: 0 | AZ64: 0 | BA64: 0 | BB64: 0.03% | BC64: 0.00% | BD64: 0.01%

Sheet frequencies
A1: Group | B1: Shammah_non_users | C1: Shammah_non_users | D1: Shammah_non_users | E1: Shammah_non_users | F1: Shammah_non_users | G1: Shammah_non_users | H1: Shammah_non_users | I1: Shammah_non_users | J1: Shammah_non_users | K1: Shammah_non_users | L1: Shammah_non_users | M1: Shammah_non_users | N1: Shammah_non_users | O1: Shammah_non_users | P1: Shammah_non_users | Q1: Shammah_non_users | R1: Shammah_non_users | S1: Shammah_non_users | T1: Shammah_non_users | U1: Shammah_non_users | V1: Shammah_non_users | W1: Shammah_non_users | X1: Shammah_non_users | Y1: Shammah_users | Z1: Shammah_users | AA1: Shammah_users | AB1: Shammah_users | AC1: Shammah_users | AD1: Shammah_users | AE1: Shammah_users | AF1: Shammah_users | AG1: Shammah_users | AH1: Shammah_users | AI1: Shammah_users | AJ1: Shammah_users | AK1: Shammah_users | AL1: Shammah_users | AM1: Shammah_users | AN1: Shammah_users | AO1: Shammah_users | AP1: Shammah_users | AQ1: Shammah_users | AR1: Shammah_users | AS1: Shammah_users | AT1: Shammah_users | AU1: Shammah_users | AV1: Shammah_users | AW1: Shammah_users | AX1: Shammah_users | AY1: Shammah_users | AZ1: Shammah_users | BA1: Shammah_users
A2: ID | B2: E1 | C2: E10 | D2: E11 | E2: E12 | F2: E13 | G2: E2 | H2: E3 | I2: E4 | J2: E40 | K2: E41 | L2: E43 | M2: E44 | N2: E45 | O2: E46 | P2: E47 | Q2: E48 | R2: E5 | S2: E51 | T2: E54 | U2: E6 | V2: E7 | W2: E8 | X2: E9 | Y2: E14 | Z2: E15 | AA2: E16 | AB2: E17 | AC2: E18 | AD2: E19 | AE2: E20 | AF2: E21 | AG2: E22 | AH2: E23 | AI2: E24 | AJ2: E25 | AK2: E26 | AL2: E27 | AM2: E28 | AN2: E29 | AO2: E30 | AP2: E31 | AQ2: E32 | AR2: E33 | AS2: E34 | AT2: E36 | AU2: E37 | AV2: E38 | AW2: E39 | AX2: E42 | AY2: E49 | AZ2: E50 | BA2: E53 | BB2: Non-users | BC2: Shammah users | BD2: Overall
A3: Actinomyces | B3: 1 | C3: 1 | D3: 1 | E3: 1 | F3: 1 | G3: 1 | H3: 1 | I3: 1 | J3: 1 | K3: 1 | L3: 1 | M3: 1 | N3: 1 | O3: 1 | P3: 1 | Q3: 1 | R3: 1 | S3: 1 | T3: 1 | U3: 1 | V3: 1 | W3: 1 | X3: 1 | Y3: 1 | Z3: 1 | AA3: 1 | AB3: 1 | AC3: 1 | AD3: 1 | AE3: 1 | AF3: 1 | AG3: 1 | AH3: 1 | AI3: 1 | AJ3: 1 | AK3: 1 | AL3: 1 | AM3: 1 | AN3: 1 | AO3: 1 | AP3: 1 | AQ3: 1 | AR3: 1 | AS3: 1 | AT3: 1 | AU3: 1 | AV3: 1 | AW3: 1 | AX3: 1 | AY3: 1 | AZ3: 1 | BA3: 1 | BB3: =AVERAGE(B3:X3) -> 100.00% | BC3: =AVERAGE(Y3:BA3) -> 100.00% | BD3: =AVERAGE(B3:BA3) -> 100.00%
A4: Rothia | B4: 1 | C4: 1 | D4: 1 | E4: 1 | F4: 1 | G4: 1 | H4: 1 | I4: 1 | J4: 1 | K4: 1 | L4: 1 | M4: 1 | N4: 1 | O4: 1 | P4: 1 | Q4: 1 | R4: 1 | S4: 1 | T4: 1 | U4: 1 | V4: 1 | W4: 1 | X4: 1 | Y4: 1 | Z4: 1 | AA4: 1 | AB4: 1 | AC4: 1 | AD4: 1 | AE4: 1 | AF4: 1 | AG4: 1 | AH4: 1 | AI4: 1 | AJ4: 1 | AK4: 1 | AL4: 1 | AM4: 1 | AN4: 1 | AO4: 1 | AP4: 1 | AQ4: 1 | AR4: 1 | AS4: 1 | AT4: 1 | AU4: 1 | AV4: 1 | AW4: 1 | AX4: 1 | AY4: 1 | AZ4: 1 | BA4: 1 | BB4: =AVERAGE(B4:X4) -> 100.00% | BC4: =AVERAGE(Y4:BA4) -> 100.00% | BD4: =AVERAGE(B4:BA4) -> 100.00%
A5: Atopobium | B5: 1 | C5: 1 | D5: 1 | E5: 1 | F5: 1 | G5: 1 | H5: 1 | I5: 1 | J5: 1 | K5: 1 | L5: 1 | M5: 1 | N5: 1 | O5: 1 | P5: 1 | Q5: 1 | R5: 1 | S5: 1 | T5: 1 | U5: 1 | V5: 1 | W5: 1 | X5: 1 | Y5: 1 | Z5: 1 | AA5: 1 | AB5: 1 | AC5: 1 | AD5: 1 | AE5: 1 | AF5: 1 | AG5: 1 | AH5: 1 | AI5: 1 | AJ5: 1 | AK5: 1 | AL5: 1 | AM5: 1 | AN5: 1 | AO5: 1 | AP5: 1 | AQ5: 1 | AR5: 1 | AS5: 1 | AT5: 1 | AU5: 1 | AV5: 1 | AW5: 1 | AX5: 1 | AY5: 1 | AZ5: 1 | BA5: 1 | BB5: =AVERAGE(B5:X5) -> 100.00% | BC5: =AVERAGE(Y5:BA5) -> 100.00% | BD5: =AVERAGE(B5:BA5) -> 100.00%
A6: Porphyromonas | B6: 1 | C6: 1 | D6: 1 | E6: 1 | F6: 1 | G6: 1 | H6: 1 | I6: 1 | J6: 1 | K6: 1 | L6: 1 | M6: 1 | N6: 1 | O6: 1 | P6: 1 | Q6: 1 | R6: 1 | S6: 1 | T6: 1 | U6: 1 | V6: 1 | W6: 1 | X6: 1 | Y6: 1 | Z6: 1 | AA6: 1 | AB6: 1 | AC6: 1 | AD6: 1 | AE6: 1 | AF6: 1 | AG6: 1 | AH6: 1 | AI6: 1 | AJ6: 1 | AK6: 1 | AL6: 1 | AM6: 1 | AN6: 1 | AO6: 1 | AP6: 1 | AQ6: 1 | AR6: 1 | AS6: 1 | AT6: 1 | AU6: 1 | AV6: 1 | AW6: 1 | AX6: 1 | AY6: 1 | AZ6: 1 | BA6: 1 | BB6: =AVERAGE(B6:X6) -> 100.00% | BC6: =AVERAGE(Y6:BA6) -> 100.00% | BD6: =AVERAGE(B6:BA6) -> 100.00%
A7: Prevotella | B7: 1 | C7: 1 | D7: 1 | E7: 1 | F7: 1 | G7: 1 | H7: 1 | I7: 1 | J7: 1 | K7: 1 | L7: 1 | M7: 1 | N7: 1 | O7: 1 | P7: 1 | Q7: 1 | R7: 1 | S7: 1 | T7: 1 | U7: 1 | V7: 1 | W7: 1 | X7: 1 | Y7: 1 | Z7: 1 | AA7: 1 | AB7: 1 | AC7: 1 | AD7: 1 | AE7: 1 | AF7: 1 | AG7: 1 | AH7: 1 | AI7: 1 | AJ7: 1 | AK7: 1 | AL7: 1 | AM7: 1 | AN7: 1 | AO7: 1 | AP7: 1 | AQ7: 1 | AR7: 1 | AS7: 1 | AT7: 1 | AU7: 1 | AV7: 1 | AW7: 1 | AX7: 1 | AY7: 1 | AZ7: 1 | BA7: 1 | BB7: =AVERAGE(B7:X7) -> 100.00% | BC7: =AVERAGE(Y7:BA7) -> 100.00% | BD7: =AVERAGE(B7:BA7) -> 100.00%
A8: Gemella | B8: 1 | C8: 1 | D8: 1 | E8: 1 | F8: 1 | G8: 1 | H8: 1 | I8: 1 | J8: 1 | K8: 1 | L8: 1 | M8: 1 | N8: 1 | O8: 1 | P8: 1 | Q8: 1 | R8: 1 | S8: 1 | T8: 1 | U8: 1 | V8: 1 | W8: 1 | X8: 1 | Y8: 1 | Z8: 1 | AA8: 1 | AB8: 1 | AC8: 1 | AD8: 1 | AE8: 1 | AF8: 1 | AG8: 1 | AH8: 1 | AI8: 1 | AJ8: 1 | AK8: 1 | AL8: 1 | AM8: 1 | AN8: 1 | AO8: 1 | AP8: 1 | AQ8: 1 | AR8: 1 | AS8: 1 | AT8: 1 | AU8: 1 | AV8: 1 | AW8: 1 | AX8: 1 | AY8: 1 | AZ8: 1 | BA8: 1 | BB8: =AVERAGE(B8:X8) -> 100.00% | BC8: =AVERAGE(Y8:BA8) -> 100.00% | BD8: =AVERAGE(B8:BA8) -> 100.00%
A9: Granulicatella | B9: 1 | C9: 1 | D9: 1 | E9: 1 | F9: 1 | G9: 1 | H9: 1 | I9: 1 | J9: 1 | K9: 1 | L9: 1 | M9: 1 | N9: 1 | O9: 1 | P9: 1 | Q9: 1 | R9: 1 | S9: 1 | T9: 1 | U9: 1 | V9: 1 | W9: 1 | X9: 1 | Y9: 1 | Z9: 1 | AA9: 1 | AB9: 1 | AC9: 1 | AD9: 1 | AE9: 1 | AF9: 1 | AG9: 1 | AH9: 1 | AI9: 1 | AJ9: 1 | AK9: 1 | AL9: 1 | AM9: 1 | AN9: 1 | AO9: 1 | AP9: 1 | AQ9: 1 | AR9: 1 | AS9: 1 | AT9: 1 | AU9: 1 | AV9: 1 | AW9: 1 | AX9: 1 | AY9: 1 | AZ9: 1 | BA9: 1 | BB9: =AVERAGE(B9:X9) -> 100.00% | BC9: =AVERAGE(Y9:BA9) -> 100.00% | BD9: =AVERAGE(B9:BA9) -> 100.00%
A10: Streptococcus | B10: 1 | C10: 1 | D10: 1 | E10: 1 | F10: 1 | G10: 1 | H10: 1 | I10: 1 | J10: 1 | K10: 1 | L10: 1 | M10: 1 | N10: 1 | O10: 1 | P10: 1 | Q10: 1 | R10: 1 | S10: 1 | T10: 1 | U10: 1 | V10: 1 | W10: 1 | X10: 1 | Y10: 1 | Z10: 1 | AA10: 1 | AB10: 1 | AC10: 1 | AD10: 1 | AE10: 1 | AF10: 1 | AG10: 1 | AH10: 1 | AI10: 1 | AJ10: 1 | AK10: 1 | AL10: 1 | AM10: 1 | AN10: 1 | AO10: 1 | AP10: 1 | AQ10: 1 | AR10: 1 | AS10: 1 | AT10: 1 | AU10: 1 | AV10: 1 | AW10: 1 | AX10: 1 | AY10: 1 | AZ10: 1 | BA10: 1 | BB10: =AVERAGE(B10:X10) -> 100.00% | BC10: =AVERAGE(Y10:BA10) -> 100.00% | BD10: =AVERAGE(B10:BA10) -> 100.00%
A11: Lachnoanaerobaculum | B11: 1 | C11: 1 | D11: 1 | E11: 1 | F11: 1 | G11: 1 | H11: 1 | I11: 1 | J11: 1 | K11: 1 | L11: 1 | M11: 1 | N11: 1 | O11: 1 | P11: 1 | Q11: 1 | R11: 1 | S11: 1 | T11: 1 | U11: 1 | V11: 1 | W11: 1 | X11: 1 | Y11: 1 | Z11: 1 | AA11: 1 | AB11: 1 | AC11: 1 | AD11: 1 | AE11: 1 | AF11: 1 | AG11: 1 | AH11: 1 | AI11: 1 | AJ11: 1 | AK11: 1 | AL11: 1 | AM11: 1 | AN11: 1 | AO11: 1 | AP11: 1 | AQ11: 1 | AR11: 1 | AS11: 1 | AT11: 1 | AU11: 1 | AV11: 1 | AW11: 1 | AX11: 1 | AY11: 1 | AZ11: 1 | BA11: 1 | BB11: =AVERAGE(B11:X11) -> 100.00% | BC11: =AVERAGE(Y11:BA11) -> 100.00% | BD11: =AVERAGE(B11:BA11) -> 100.00%
A12: Oribacterium | B12: 1 | C12: 1 | D12: 1 | E12: 1 | F12: 1 | G12: 1 | H12: 1 | I12: 1 | J12: 1 | K12: 1 | L12: 1 | M12: 1 | N12: 1 | O12: 1 | P12: 1 | Q12: 1 | R12: 1 | S12: 1 | T12: 1 | U12: 1 | V12: 1 | W12: 1 | X12: 1 | Y12: 1 | Z12: 1 | AA12: 1 | AB12: 1 | AC12: 1 | AD12: 1 | AE12: 1 | AF12: 1 | AG12: 1 | AH12: 1 | AI12: 1 | AJ12: 1 | AK12: 1 | AL12: 1 | AM12: 1 | AN12: 1 | AO12: 1 | AP12: 1 | AQ12: 1 | AR12: 1 | AS12: 1 | AT12: 1 | AU12: 1 | AV12: 1 | AW12: 1 | AX12: 1 | AY12: 1 | AZ12: 1 | BA12: 1 | BB12: =AVERAGE(B12:X12) -> 100.00% | BC12: =AVERAGE(Y12:BA12) -> 100.00% | BD12: =AVERAGE(B12:BA12) -> 100.00%
A13: Stomatobaculum | B13: 1 | C13: 1 | D13: 1 | E13: 1 | F13: 1 | G13: 1 | H13: 1 | I13: 1 | J13: 1 | K13: 1 | L13: 1 | M13: 1 | N13: 1 | O13: 1 | P13: 1 | Q13: 1 | R13: 1 | S13: 1 | T13: 1 | U13: 1 | V13: 1 | W13: 1 | X13: 1 | Y13: 1 | Z13: 1 | AA13: 1 | AB13: 1 | AC13: 1 | AD13: 1 | AE13: 1 | AF13: 1 | AG13: 1 | AH13: 1 | AI13: 1 | AJ13: 1 | AK13: 1 | AL13: 1 | AM13: 1 | AN13: 1 | AO13: 1 | AP13: 1 | AQ13: 1 | AR13: 1 | AS13: 1 | AT13: 1 | AU13: 1 | AV13: 1 | AW13: 1 | AX13: 1 | AY13: 1 | AZ13: 1 | BA13: 1 | BB13: =AVERAGE(B13:X13) -> 100.00% | BC13: =AVERAGE(Y13:BA13) -> 100.00% | BD13: =AVERAGE(B13:BA13) -> 100.00%
A14: Solobacterium | B14: 1 | C14: 1 | D14: 1 | E14: 1 | F14: 1 | G14: 1 | H14: 1 | I14: 1 | J14: 1 | K14: 1 | L14: 1 | M14: 1 | N14: 1 | O14: 1 | P14: 1 | Q14: 1 | R14: 1 | S14: 1 | T14: 1 | U14: 1 | V14: 1 | W14: 1 | X14: 1 | Y14: 1 | Z14: 1 | AA14: 1 | AB14: 1 | AC14: 1 | AD14: 1 | AE14: 1 | AF14: 1 | AG14: 1 | AH14: 1 | AI14: 1 | AJ14: 1 | AK14: 1 | AL14: 1 | AM14: 1 | AN14: 1 | AO14: 1 | AP14: 1 | AQ14: 1 | AR14: 1 | AS14: 1 | AT14: 1 | AU14: 1 | AV14: 1 | AW14: 1 | AX14: 1 | AY14: 1 | AZ14: 1 | BA14: 1 | BB14: =AVERAGE(B14:X14) -> 100.00% | BC14: =AVERAGE(Y14:BA14) -> 100.00% | BD14: =AVERAGE(B14:BA14) -> 100.00%
A15: Veillonella | B15: 1 | C15: 1 | D15: 1 | E15: 1 | F15: 1 | G15: 1 | H15: 1 | I15: 1 | J15: 1 | K15: 1 | L15: 1 | M15: 1 | N15: 1 | O15: 1 | P15: 1 | Q15: 1 | R15: 1 | S15: 1 | T15: 1 | U15: 1 | V15: 1 | W15: 1 | X15: 1 | Y15: 1 | Z15: 1 | AA15: 1 | AB15: 1 | AC15: 1 | AD15: 1 | AE15: 1 | AF15: 1 | AG15: 1 | AH15: 1 | AI15: 1 | AJ15: 1 | AK15: 1 | AL15: 1 | AM15: 1 | AN15: 1 | AO15: 1 | AP15: 1 | AQ15: 1 | AR15: 1 | AS15: 1 | AT15: 1 | AU15: 1 | AV15: 1 | AW15: 1 | AX15: 1 | AY15: 1 | AZ15: 1 | BA15: 1 | BB15: =AVERAGE(B15:X15) -> 100.00% | BC15: =AVERAGE(Y15:BA15) -> 100.00% | BD15: =AVERAGE(B15:BA15) -> 100.00%
A16: Fusobacterium | B16: 1 | C16: 1 | D16: 1 | E16: 1 | F16: 1 | G16: 1 | H16: 1 | I16: 1 | J16: 1 | K16: 1 | L16: 1 | M16: 1 | N16: 1 | O16: 1 | P16: 1 | Q16: 1 | R16: 1 | S16: 1 | T16: 1 | U16: 1 | V16: 1 | W16: 1 | X16: 1 | Y16: 1 | Z16: 1 | AA16: 1 | AB16: 1 | AC16: 1 | AD16: 1 | AE16: 1 | AF16: 1 | AG16: 1 | AH16: 1 | AI16: 1 | AJ16: 1 | AK16: 1 | AL16: 1 | AM16: 1 | AN16: 1 | AO16: 1 | AP16: 1 | AQ16: 1 | AR16: 1 | AS16: 1 | AT16: 1 | AU16: 1 | AV16: 1 | AW16: 1 | AX16: 1 | AY16: 1 | AZ16: 1 | BA16: 1 | BB16: =AVERAGE(B16:X16) -> 100.00% | BC16: =AVERAGE(Y16:BA16) -> 100.00% | BD16: =AVERAGE(B16:BA16) -> 100.00%
A17: Leptotrichia | B17: 1 | C17: 1 | D17: 1 | E17: 1 | F17: 1 | G17: 1 | H17: 1 | I17: 1 | J17: 1 | K17: 1 | L17: 1 | M17: 1 | N17: 1 | O17: 1 | P17: 1 | Q17: 1 | R17: 1 | S17: 1 | T17: 1 | U17: 1 | V17: 1 | W17: 1 | X17: 1 | Y17: 1 | Z17: 1 | AA17: 1 | AB17: 1 | AC17: 1 | AD17: 1 | AE17: 1 | AF17: 1 | AG17: 1 | AH17: 1 | AI17: 1 | AJ17: 1 | AK17: 1 | AL17: 1 | AM17: 1 | AN17: 1 | AO17: 1 | AP17: 1 | AQ17: 1 | AR17: 1 | AS17: 1 | AT17: 1 | AU17: 1 | AV17: 1 | AW17: 1 | AX17: 1 | AY17: 1 | AZ17: 1 | BA17: 1 | BB17: =AVERAGE(B17:X17) -> 100.00% | BC17: =AVERAGE(Y17:BA17) -> 100.00% | BD17: =AVERAGE(B17:BA17) -> 100.00%
A18: Haemophilus | B18: 1 | C18: 1 | D18: 1 | E18: 1 | F18: 1 | G18: 1 | H18: 1 | I18: 1 | J18: 1 | K18: 1 | L18: 1 | M18: 1 | N18: 1 | O18: 1 | P18: 1 | Q18: 1 | R18: 1 | S18: 1 | T18: 1 | U18: 1 | V18: 1 | W18: 1 | X18: 1 | Y18: 1 | Z18: 1 | AA18: 1 | AB18: 1 | AC18: 1 | AD18: 1 | AE18: 1 | AF18: 1 | AG18: 1 | AH18: 1 | AI18: 1 | AJ18: 1 | AK18: 1 | AL18: 1 | AM18: 1 | AN18: 1 | AO18: 1 | AP18: 1 | AQ18: 1 | AR18: 1 | AS18: 1 | AT18: 1 | AU18: 1 | AV18: 1 | AW18: 1 | AX18: 1 | AY18: 1 | AZ18: 1 | BA18: 1 | BB18: =AVERAGE(B18:X18) -> 100.00% | BC18: =AVERAGE(Y18:BA18) -> 100.00% | BD18: =AVERAGE(B18:BA18) -> 100.00%
A19: TM7_[G-1] | B19: 1 | C19: 1 | D19: 1 | E19: 1 | F19: 1 | G19: 1 | H19: 1 | I19: 1 | J19: 1 | K19: 1 | L19: 1 | M19: 1 | N19: 1 | O19: 1 | P19: 1 | Q19: 1 | R19: 1 | S19: 1 | T19: 1 | U19: 1 | V19: 1 | W19: 1 | X19: 1 | Y19: 1 | Z19: 1 | AA19: 1 | AB19: 1 | AC19: 1 | AD19: 1 | AE19: 1 | AF19: 1 | AG19: 1 | AH19: 1 | AI19: 1 | AJ19: 1 | AK19: 1 | AL19: 1 | AM19: 1 | AN19: 1 | AO19: 1 | AP19: 1 | AQ19: 1 | AR19: 1 | AS19: 1 | AT19: 1 | AU19: 1 | AV19: 1 | AW19: 1 | AX19: 1 | AY19: 1 | AZ19: 1 | BA19: 1 | BB19: =AVERAGE(B19:X19) -> 100.00% | BC19: =AVERAGE(Y19:BA19) -> 100.00% | BD19: =AVERAGE(B19:BA19) -> 100.00%
A20: Capnocytophaga | B20: 1 | C20: 1 | D20: 1 | E20: 1 | F20: 1 | G20: 1 | H20: 1 | I20: 1 | J20: 1 | K20: 1 | L20: 1 | M20: 1 | N20: 1 | O20: 1 | P20: 1 | Q20: 1 | R20: 1 | S20: 1 | T20: 1 | U20: 1 | V20: 1 | W20: 1 | X20: 1 | Y20: 1 | Z20: 1 | AA20: 1 | AB20: 1 | AC20: 1 | AD20: 1 | AE20: 1 | AF20: 1 | AG20: 1 | AH20: 0 | AI20: 1 | AJ20: 1 | AK20: 1 | AL20: 1 | AM20: 1 | AN20: 1 | AO20: 1 | AP20: 1 | AQ20: 1 | AR20: 1 | AS20: 1 | AT20: 1 | AU20: 1 | AV20: 1 | AW20: 1 | AX20: 1 | AY20: 1 | AZ20: 1 | BA20: 1 | BB20: =AVERAGE(B20:X20) -> 100.00% | BC20: =AVERAGE(Y20:BA20) -> 96.55% | BD20: =AVERAGE(B20:BA20) -> 98.08%
A21: Mogibacterium | B21: 1 | C21: 1 | D21: 1 | E21: 1 | F21: 1 | G21: 1 | H21: 1 | I21: 1 | J21: 1 | K21: 1 | L21: 1 | M21: 1 | N21: 1 | O21: 1 | P21: 1 | Q21: 1 | R21: 1 | S21: 1 | T21: 1 | U21: 1 | V21: 1 | W21: 1 | X21: 1 | Y21: 1 | Z21: 1 | AA21: 1 | AB21: 0 | AC21: 1 | AD21: 1 | AE21: 1 | AF21: 1 | AG21: 1 | AH21: 1 | AI21: 1 | AJ21: 1 | AK21: 1 | AL21: 1 | AM21: 1 | AN21: 1 | AO21: 1 | AP21: 1 | AQ21: 1 | AR21: 1 | AS21: 1 | AT21: 1 | AU21: 1 | AV21: 1 | AW21: 1 | AX21: 1 | AY21: 1 | AZ21: 1 | BA21: 1 | BB21: =AVERAGE(B21:X21) -> 100.00% | BC21: =AVERAGE(Y21:BA21) -> 96.55% | BD21: =AVERAGE(B21:BA21) -> 98.08%
A22: Neisseria | B22: 1 | C22: 1 | D22: 1 | E22: 1 | F22: 1 | G22: 1 | H22: 1 | I22: 1 | J22: 1 | K22: 1 | L22: 1 | M22: 1 | N22: 1 | O22: 1 | P22: 1 | Q22: 1 | R22: 1 | S22: 1 | T22: 1 | U22: 1 | V22: 1 | W22: 1 | X22: 1 | Y22: 1 | Z22: 1 | AA22: 1 | AB22: 1 | AC22: 1 | AD22: 1 | AE22: 1 | AF22: 1 | AG22: 1 | AH22: 1 | AI22: 1 | AJ22: 1 | AK22: 1 | AL22: 1 | AM22: 1 | AN22: 1 | AO22: 0 | AP22: 1 | AQ22: 1 | AR22: 1 | AS22: 1 | AT22: 1 | AU22: 1 | AV22: 1 | AW22: 1 | AX22: 1 | AY22: 1 | AZ22: 1 | BA22: 1 | BB22: =AVERAGE(B22:X22) -> 100.00% | BC22: =AVERAGE(Y22:BA22) -> 96.55% | BD22: =AVERAGE(B22:BA22) -> 98.08%
A23: Campylobacter | B23: 1 | C23: 1 | D23: 1 | E23: 1 | F23: 1 | G23: 1 | H23: 1 | I23: 1 | J23: 1 | K23: 1 | L23: 1 | M23: 1 | N23: 1 | O23: 1 | P23: 1 | Q23: 1 | R23: 1 | S23: 1 | T23: 1 | U23: 1 | V23: 1 | W23: 1 | X23: 1 | Y23: 0 | Z23: 1 | AA23: 1 | AB23: 1 | AC23: 1 | AD23: 1 | AE23: 1 | AF23: 1 | AG23: 1 | AH23: 1 | AI23: 1 | AJ23: 1 | AK23: 1 | AL23: 1 | AM23: 1 | AN23: 1 | AO23: 1 | AP23: 1 | AQ23: 1 | AR23: 1 | AS23: 1 | AT23: 1 | AU23: 1 | AV23: 1 | AW23: 1 | AX23: 1 | AY23: 1 | AZ23: 1 | BA23: 1 | BB23: =AVERAGE(B23:X23) -> 100.00% | BC23: =AVERAGE(Y23:BA23) -> 96.55% | BD23: =AVERAGE(B23:BA23) -> 98.08%
A24: Peptostreptococcus | B24: 1 | C24: 1 | D24: 1 | E24: 1 | F24: 1 | G24: 1 | H24: 1 | I24: 1 | J24: 1 | K24: 1 | L24: 1 | M24: 1 | N24: 1 | O24: 1 | P24: 1 | Q24: 1 | R24: 1 | S24: 1 | T24: 1 | U24: 1 | V24: 1 | W24: 1 | X24: 1 | Y24: 1 | Z24: 1 | AA24: 1 | AB24: 1 | AC24: 1 | AD24: 1 | AE24: 1 | AF24: 1 | AG24: 1 | AH24: 0 | AI24: 1 | AJ24: 1 | AK24: 1 | AL24: 1 | AM24: 1 | AN24: 1 | AO24: 0 | AP24: 1 | AQ24: 1 | AR24: 1 | AS24: 1 | AT24: 1 | AU24: 1 | AV24: 1 | AW24: 1 | AX24: 1 | AY24: 1 | AZ24: 0 | BA24: 1 | BB24: =AVERAGE(B24:X24) -> 100.00% | BC24: =AVERAGE(Y24:BA24) -> 89.66% | BD24: =AVERAGE(B24:BA24) -> 94.23%
A25: Peptostreptococcaceae_[XI][G-1] | B25: 1 | C25: 0 | D25: 1 | E25: 1 | F25: 1 | G25: 1 | H25: 1 | I25: 1 | J25: 1 | K25: 1 | L25: 1 | M25: 1 | N25: 1 | O25: 1 | P25: 1 | Q25: 1 | R25: 1 | S25: 1 | T25: 1 | U25: 1 | V25: 1 | W25: 1 | X25: 1 | Y25: 1 | Z25: 1 | AA25: 1 | AB25: 0 | AC25: 1 | AD25: 1 | AE25: 1 | AF25: 1 | AG25: 1 | AH25: 1 | AI25: 1 | AJ25: 1 | AK25: 1 | AL25: 1 | AM25: 1 | AN25: 1 | AO25: 0 | AP25: 1 | AQ25: 1 | AR25: 1 | AS25: 1 | AT25: 1 | AU25: 1 | AV25: 1 | AW25: 1 | AX25: 1 | AY25: 1 | AZ25: 1 | BA25: 1 | BB25: =AVERAGE(B25:X25) -> 95.65% | BC25: =AVERAGE(Y25:BA25) -> 93.10% | BD25: =AVERAGE(B25:BA25) -> 94.23%
A26: Alloprevotella | B26: 1 | C26: 1 | D26: 1 | E26: 1 | F26: 1 | G26: 1 | H26: 1 | I26: 1 | J26: 1 | K26: 1 | L26: 1 | M26: 1 | N26: 0 | O26: 1 | P26: 1 | Q26: 0 | R26: 1 | S26: 1 | T26: 1 | U26: 1 | V26: 1 | W26: 1 | X26: 1 | Y26: 1 | Z26: 1 | AA26: 1 | AB26: 1 | AC26: 1 | AD26: 1 | AE26: 1 | AF26: 1 | AG26: 1 | AH26: 1 | AI26: 1 | AJ26: 1 | AK26: 1 | AL26: 1 | AM26: 1 | AN26: 1 | AO26: 1 | AP26: 1 | AQ26: 0 | AR26: 1 | AS26: 1 | AT26: 1 | AU26: 1 | AV26: 1 | AW26: 1 | AX26: 1 | AY26: 1 | AZ26: 1 | BA26: 1 | BB26: =AVERAGE(B26:X26) -> 91.30% | BC26: =AVERAGE(Y26:BA26) -> 96.55% | BD26: =AVERAGE(B26:BA26) -> 94.23%
A27: Catonella | B27: 1 | C27: 1 | D27: 1 | E27: 1 | F27: 1 | G27: 1 | H27: 1 | I27: 1 | J27: 1 | K27: 1 | L27: 1 | M27: 0 | N27: 1 | O27: 1 | P27: 0 | Q27: 1 | R27: 1 | S27: 1 | T27: 1 | U27: 1 | V27: 1 | W27: 1 | X27: 1 | Y27: 1 | Z27: 1 | AA27: 1 | AB27: 0 | AC27: 1 | AD27: 1 | AE27: 1 | AF27: 1 | AG27: 1 | AH27: 1 | AI27: 1 | AJ27: 1 | AK27: 1 | AL27: 1 | AM27: 1 | AN27: 1 | AO27: 0 | AP27: 1 | AQ27: 1 | AR27: 1 | AS27: 1 | AT27: 1 | AU27: 1 | AV27: 1 | AW27: 1 | AX27: 0 | AY27: 1 | AZ27: 1 | BA27: 1 | BB27: =AVERAGE(B27:X27) -> 91.30% | BC27: =AVERAGE(Y27:BA27) -> 89.66% | BD27: =AVERAGE(B27:BA27) -> 90.38%
A28: Tannerella | B28: 1 | C28: 0 | D28: 1 | E28: 1 | F28: 1 | G28: 1 | H28: 1 | I28: 1 | J28: 1 | K28: 1 | L28: 1 | M28: 1 | N28: 1 | O28: 0 | P28: 1 | Q28: 1 | R28: 1 | S28: 0 | T28: 1 | U28: 1 | V28: 1 | W28: 1 | X28: 1 | Y28: 1 | Z28: 1 | AA28: 1 | AB28: 0 | AC28: 1 | AD28: 1 | AE28: 1 | AF28: 1 | AG28: 1 | AH28: 0 | AI28: 1 | AJ28: 1 | AK28: 1 | AL28: 1 | AM28: 1 | AN28: 1 | AO28: 1 | AP28: 1 | AQ28: 1 | AR28: 1 | AS28: 1 | AT28: 1 | AU28: 1 | AV28: 1 | AW28: 1 | AX28: 1 | AY28: 1 | AZ28: 1 | BA28: 1 | BB28: =AVERAGE(B28:X28) -> 86.96% | BC28: =AVERAGE(Y28:BA28) -> 93.10% | BD28: =AVERAGE(B28:BA28) -> 90.38%
A29: Megasphaera | B29: 1 | C29: 1 | D29: 1 | E29: 1 | F29: 1 | G29: 1 | H29: 1 | I29: 1 | J29: 0 | K29: 1 | L29: 1 | M29: 1 | N29: 1 | O29: 1 | P29: 1 | Q29: 1 | R29: 0 | S29: 1 | T29: 1 | U29: 1 | V29: 1 | W29: 1 | X29: 1 | Y29: 0 | Z29: 0 | AA29: 1 | AB29: 0 | AC29: 1 | AD29: 1 | AE29: 1 | AF29: 1 | AG29: 1 | AH29: 1 | AI29: 1 | AJ29: 1 | AK29: 1 | AL29: 1 | AM29: 1 | AN29: 1 | AO29: 1 | AP29: 1 | AQ29: 1 | AR29: 1 | AS29: 1 | AT29: 1 | AU29: 1 | AV29: 1 | AW29: 1 | AX29: 1 | AY29: 1 | AZ29: 1 | BA29: 0 | BB29: =AVERAGE(B29:X29) -> 91.30% | BC29: =AVERAGE(Y29:BA29) -> 86.21% | BD29: =AVERAGE(B29:BA29) -> 88.46%
A30: Ruminococcaceae_[G-2] | B30: 1 | C30: 0 | D30: 1 | E30: 1 | F30: 1 | G30: 1 | H30: 1 | I30: 1 | J30: 1 | K30: 1 | L30: 1 | M30: 1 | N30: 1 | O30: 1 | P30: 1 | Q30: 1 | R30: 1 | S30: 1 | T30: 1 | U30: 0 | V30: 1 | W30: 0 | X30: 1 | Y30: 1 | Z30: 1 | AA30: 1 | AB30: 0 | AC30: 1 | AD30: 1 | AE30: 1 | AF30: 1 | AG30: 1 | AH30: 0 | AI30: 1 | AJ30: 1 | AK30: 1 | AL30: 1 | AM30: 1 | AN30: 1 | AO30: 0 | AP30: 1 | AQ30: 1 | AR30: 1 | AS30: 1 | AT30: 1 | AU30: 1 | AV30: 1 | AW30: 1 | AX30: 1 | AY30: 1 | AZ30: 1 | BA30: 1 | BB30: =AVERAGE(B30:X30) -> 86.96% | BC30: =AVERAGE(Y30:BA30) -> 89.66% | BD30: =AVERAGE(B30:BA30) -> 88.46%
A31: Bergeyella | B31: 1 | C31: 1 | D31: 1 | E31: 1 | F31: 1 | G31: 1 | H31: 1 | I31: 1 | J31: 1 | K31: 1 | L31: 0 | M31: 1 | N31: 1 | O31: 1 | P31: 1 | Q31: 0 | R31: 1 | S31: 0 | T31: 1 | U31: 1 | V31: 1 | W31: 1 | X31: 1 | Y31: 1 | Z31: 1 | AA31: 1 | AB31: 1 | AC31: 0 | AD31: 1 | AE31: 1 | AF31: 1 | AG31: 1 | AH31: 0 | AI31: 1 | AJ31: 1 | AK31: 1 | AL31: 1 | AM31: 1 | AN31: 1 | AO31: 0 | AP31: 1 | AQ31: 1 | AR31: 1 | AS31: 1 | AT31: 1 | AU31: 1 | AV31: 0 | AW31: 1 | AX31: 1 | AY31: 0 | AZ31: 1 | BA31: 1 | BB31: =AVERAGE(B31:X31) -> 86.96% | BC31: =AVERAGE(Y31:BA31) -> 82.76% | BD31: =AVERAGE(B31:BA31) -> 84.62%
A32: TM7_[G-3] | B32: 1 | C32: 1 | D32: 1 | E32: 1 | F32: 1 | G32: 1 | H32: 1 | I32: 1 | J32: 1 | K32: 1 | L32: 1 | M32: 1 | N32: 1 | O32: 1 | P32: 1 | Q32: 1 | R32: 1 | S32: 1 | T32: 1 | U32: 1 | V32: 0 | W32: 1 | X32: 1 | Y32: 0 | Z32: 1 | AA32: 1 | AB32: 0 | AC32: 1 | AD32: 1 | AE32: 1 | AF32: 1 | AG32: 1 | AH32: 0 | AI32: 1 | AJ32: 0 | AK32: 1 | AL32: 0 | AM32: 1 | AN32: 1 | AO32: 0 | AP32: 1 | AQ32: 0 | AR32: 1 | AS32: 1 | AT32: 1 | AU32: 1 | AV32: 1 | AW32: 1 | AX32: 1 | AY32: 1 | AZ32: 1 | BA32: 0 | BB32: =AVERAGE(B32:X32) -> 95.65% | BC32: =AVERAGE(Y32:BA32) -> 72.41% | BD32: =AVERAGE(B32:BA32) -> 82.69%
A33: Cronobacter | B33: 0 | C33: 1 | D33: 1 | E33: 1 | F33: 1 | G33: 1 | H33: 1 | I33: 1 | J33: 1 | K33: 1 | L33: 1 | M33: 1 | N33: 1 | O33: 0 | P33: 0 | Q33: 1 | R33: 1 | S33: 0 | T33: 1 | U33: 0 | V33: 1 | W33: 1 | X33: 0 | Y33: 1 | Z33: 1 | AA33: 1 | AB33: 1 | AC33: 1 | AD33: 0 | AE33: 1 | AF33: 1 | AG33: 0 | AH33: 1 | AI33: 1 | AJ33: 1 | AK33: 1 | AL33: 1 | AM33: 0 | AN33: 0 | AO33: 1 | AP33: 1 | AQ33: 1 | AR33: 1 | AS33: 1 | AT33: 1 | AU33: 0 | AV33: 1 | AW33: 1 | AX33: 1 | AY33: 1 | AZ33: 1 | BA33: 1 | BB33: =AVERAGE(B33:X33) -> 73.91% | BC33: =AVERAGE(Y33:BA33) -> 82.76% | BD33: =AVERAGE(B33:BA33) -> 78.85%
A34: Eikenella | B34: 1 | C34: 1 | D34: 1 | E34: 1 | F34: 1 | G34: 0 | H34: 1 | I34: 1 | J34: 1 | K34: 1 | L34: 1 | M34: 1 | N34: 1 | O34: 0 | P34: 1 | Q34: 1 | R34: 1 | S34: 0 | T34: 1 | U34: 1 | V34: 1 | W34: 1 | X34: 1 | Y34: 1 | Z34: 1 | AA34: 1 | AB34: 0 | AC34: 0 | AD34: 1 | AE34: 0 | AF34: 0 | AG34: 0 | AH34: 1 | AI34: 1 | AJ34: 0 | AK34: 1 | AL34: 1 | AM34: 1 | AN34: 0 | AO34: 1 | AP34: 1 | AQ34: 1 | AR34: 1 | AS34: 1 | AT34: 1 | AU34: 0 | AV34: 1 | AW34: 1 | AX34: 1 | AY34: 1 | AZ34: 1 | BA34: 0 | BB34: =AVERAGE(B34:X34) -> 86.96% | BC34: =AVERAGE(Y34:BA34) -> 68.97% | BD34: =AVERAGE(B34:BA34) -> 76.92%
A35: Selenomonas | B35: 0 | C35: 0 | D35: 1 | E35: 1 | F35: 1 | G35: 0 | H35: 1 | I35: 1 | J35: 1 | K35: 0 | L35: 0 | M35: 1 | N35: 1 | O35: 1 | P35: 1 | Q35: 1 | R35: 1 | S35: 1 | T35: 1 | U35: 1 | V35: 0 | W35: 0 | X35: 1 | Y35: 0 | Z35: 0 | AA35: 1 | AB35: 0 | AC35: 1 | AD35: 1 | AE35: 1 | AF35: 1 | AG35: 1 | AH35: 1 | AI35: 1 | AJ35: 1 | AK35: 0 | AL35: 1 | AM35: 1 | AN35: 1 | AO35: 1 | AP35: 1 | AQ35: 1 | AR35: 1 | AS35: 1 | AT35: 1 | AU35: 1 | AV35: 1 | AW35: 1 | AX35: 1 | AY35: 1 | AZ35: 0 | BA35: 0 | BB35: =AVERAGE(B35:X35) -> 69.57% | BC35: =AVERAGE(Y35:BA35) -> 79.31% | BD35: =AVERAGE(B35:BA35) -> 75.00%
A36: SR1_[G-1] | B36: 1 | C36: 0 | D36: 0 | E36: 1 | F36: 1 | G36: 0 | H36: 1 | I36: 1 | J36: 1 | K36: 1 | L36: 1 | M36: 1 | N36: 1 | O36: 1 | P36: 1 | Q36: 0 | R36: 1 | S36: 1 | T36: 1 | U36: 1 | V36: 1 | W36: 0 | X36: 1 | Y36: 1 | Z36: 1 | AA36: 1 | AB36: 1 | AC36: 1 | AD36: 1 | AE36: 1 | AF36: 1 | AG36: 1 | AH36: 0 | AI36: 1 | AJ36: 0 | AK36: 1 | AL36: 1 | AM36: 1 | AN36: 0 | AO36: 0 | AP36: 1 | AQ36: 0 | AR36: 1 | AS36: 1 | AT36: 1 | AU36: 0 | AV36: 0 | AW36: 0 | AX36: 0 | AY36: 1 | AZ36: 1 | BA36: 1 | BB36: =AVERAGE(B36:X36) -> 78.26% | BC36: =AVERAGE(Y36:BA36) -> 68.97% | BD36: =AVERAGE(B36:BA36) -> 73.08%
A37: Lachnospiraceae_[G-2] | B37: 0 | C37: 0 | D37: 0 | E37: 1 | F37: 1 | G37: 0 | H37: 1 | I37: 1 | J37: 1 | K37: 1 | L37: 1 | M37: 1 | N37: 1 | O37: 1 | P37: 1 | Q37: 1 | R37: 1 | S37: 1 | T37: 0 | U37: 1 | V37: 0 | W37: 0 | X37: 1 | Y37: 1 | Z37: 0 | AA37: 1 | AB37: 0 | AC37: 0 | AD37: 1 | AE37: 1 | AF37: 1 | AG37: 1 | AH37: 0 | AI37: 1 | AJ37: 1 | AK37: 1 | AL37: 1 | AM37: 1 | AN37: 1 | AO37: 0 | AP37: 1 | AQ37: 0 | AR37: 1 | AS37: 1 | AT37: 1 | AU37: 1 | AV37: 1 | AW37: 1 | AX37: 1 | AY37: 0 | AZ37: 1 | BA37: 1 | BB37: =AVERAGE(B37:X37) -> 69.57% | BC37: =AVERAGE(Y37:BA37) -> 75.86% | BD37: =AVERAGE(B37:BA37) -> 73.08%
A38: Lautropia | B38: 1 | C38: 1 | D38: 1 | E38: 1 | F38: 0 | G38: 1 | H38: 1 | I38: 1 | J38: 1 | K38: 1 | L38: 1 | M38: 1 | N38: 1 | O38: 0 | P38: 0 | Q38: 0 | R38: 1 | S38: 0 | T38: 0 | U38: 1 | V38: 0 | W38: 1 | X38: 1 | Y38: 1 | Z38: 1 | AA38: 1 | AB38: 1 | AC38: 1 | AD38: 1 | AE38: 1 | AF38: 0 | AG38: 1 | AH38: 1 | AI38: 1 | AJ38: 1 | AK38: 0 | AL38: 1 | AM38: 1 | AN38: 1 | AO38: 0 | AP38: 0 | AQ38: 1 | AR38: 1 | AS38: 1 | AT38: 1 | AU38: 1 | AV38: 0 | AW38: 0 | AX38: 0 | AY38: 0 | AZ38: 1 | BA38: 1 | BB38: =AVERAGE(B38:X38) -> 69.57% | BC38: =AVERAGE(Y38:BA38) -> 72.41% | BD38: =AVERAGE(B38:BA38) -> 71.15%
A39: Abiotrophia | B39: 1 | C39: 0 | D39: 1 | E39: 1 | F39: 0 | G39: 0 | H39: 1 | I39: 0 | J39: 0 | K39: 1 | L39: 1 | M39: 0 | N39: 0 | O39: 1 | P39: 1 | Q39: 1 | R39: 1 | S39: 1 | T39: 1 | U39: 1 | V39: 1 | W39: 1 | X39: 0 | Y39: 1 | Z39: 1 | AA39: 1 | AB39: 1 | AC39: 0 | AD39: 1 | AE39: 1 | AF39: 1 | AG39: 1 | AH39: 1 | AI39: 1 | AJ39: 0 | AK39: 1 | AL39: 1 | AM39: 1 | AN39: 1 | AO39: 1 | AP39: 0 | AQ39: 1 | AR39: 0 | AS39: 0 | AT39: 0 | AU39: 1 | AV39: 0 | AW39: 0 | AX39: 1 | AY39: 1 | AZ39: 1 | BA39: 1 | BB39: =AVERAGE(B39:X39) -> 65.22% | BC39: =AVERAGE(Y39:BA39) -> 72.41% | BD39: =AVERAGE(B39:BA39) -> 69.23%
A40: Parvimonas | B40: 1 | C40: 1 | D40: 0 | E40: 1 | F40: 0 | G40: 1 | H40: 1 | I40: 0 | J40: 1 | K40: 1 | L40: 1 | M40: 0 | N40: 0 | O40: 1 | P40: 1 | Q40: 1 | R40: 1 | S40: 0 | T40: 1 | U40: 0 | V40: 0 | W40: 0 | X40: 0 | Y40: 0 | Z40: 1 | AA40: 1 | AB40: 0 | AC40: 0 | AD40: 1 | AE40: 1 | AF40: 1 | AG40: 1 | AH40: 0 | AI40: 1 | AJ40: 1 | AK40: 1 | AL40: 0 | AM40: 1 | AN40: 1 | AO40: 0 | AP40: 1 | AQ40: 1 | AR40: 1 | AS40: 1 | AT40: 1 | AU40: 1 | AV40: 0 | AW40: 1 | AX40: 1 | AY40: 1 | AZ40: 1 | BA40: 1 | BB40: =AVERAGE(B40:X40) -> 56.52% | BC40: =AVERAGE(Y40:BA40) -> 75.86% | BD40: =AVERAGE(B40:BA40) -> 67.31%
A41: Staphylococcus | B41: 1 | C41: 0 | D41: 1 | E41: 0 | F41: 1 | G41: 1 | H41: 1 | I41: 0 | J41: 1 | K41: 1 | L41: 1 | M41: 0 | N41: 0 | O41: 0 | P41: 1 | Q41: 1 | R41: 1 | S41: 0 | T41: 1 | U41: 1 | V41: 1 | W41: 1 | X41: 1 | Y41: 0 | Z41: 1 | AA41: 1 | AB41: 0 | AC41: 1 | AD41: 1 | AE41: 1 | AF41: 1 | AG41: 0 | AH41: 0 | AI41: 0 | AJ41: 1 | AK41: 1 | AL41: 1 | AM41: 1 | AN41: 1 | AO41: 1 | AP41: 0 | AQ41: 0 | AR41: 0 | AS41: 0 | AT41: 1 | AU41: 1 | AV41: 0 | AW41: 0 | AX41: 0 | AY41: 1 | AZ41: 1 | BA41: 0 | BB41: =AVERAGE(B41:X41) -> 69.57% | BC41: =AVERAGE(Y41:BA41) -> 55.17% | BD41: =AVERAGE(B41:BA41) -> 61.54%
A42: Bacteroidales_[G-2] | B42: 1 | C42: 0 | D42: 0 | E42: 1 | F42: 0 | G42: 1 | H42: 1 | I42: 1 | J42: 0 | K42: 1 | L42: 0 | M42: 0 | N42: 1 | O42: 0 | P42: 1 | Q42: 1 | R42: 1 | S42: 0 | T42: 1 | U42: 1 | V42: 1 | W42: 1 | X42: 1 | Y42: 1 | Z42: 1 | AA42: 1 | AB42: 0 | AC42: 0 | AD42: 1 | AE42: 1 | AF42: 1 | AG42: 1 | AH42: 0 | AI42: 1 | AJ42: 1 | AK42: 1 | AL42: 1 | AM42: 1 | AN42: 0 | AO42: 0 | AP42: 0 | AQ42: 0 | AR42: 1 | AS42: 1 | AT42: 1 | AU42: 0 | AV42: 0 | AW42: 0 | AX42: 0 | AY42: 0 | AZ42: 0 | BA42: 1 | BB42: =AVERAGE(B42:X42) -> 65.22% | BC42: =AVERAGE(Y42:BA42) -> 55.17% | BD42: =AVERAGE(B42:BA42) -> 59.62%
A43: Aggregatibacter | B43: 1 | C43: 1 | D43: 1 | E43: 1 | F43: 0 | G43: 0 | H43: 1 | I43: 0 | J43: 1 | K43: 1 | L43: 0 | M43: 0 | N43: 0 | O43: 0 | P43: 1 | Q43: 1 | R43: 0 | S43: 0 | T43: 1 | U43: 1 | V43: 0 | W43: 0 | X43: 1 | Y43: 0 | Z43: 1 | AA43: 0 | AB43: 0 | AC43: 1 | AD43: 0 | AE43: 1 | AF43: 0 | AG43: 1 | AH43: 0 | AI43: 1 | AJ43: 0 | AK43: 1 | AL43: 1 | AM43: 1 | AN43: 1 | AO43: 1 | AP43: 0 | AQ43: 0 | AR43: 1 | AS43: 1 | AT43: 1 | AU43: 0 | AV43: 1 | AW43: 1 | AX43: 1 | AY43: 0 | AZ43: 0 | BA43: 1 | BB43: =AVERAGE(B43:X43) -> 52.17% | BC43: =AVERAGE(Y43:BA43) -> 58.62% | BD43: =AVERAGE(B43:BA43) -> 55.77%
A44: Butyrivibrio | B44: 0 | C44: 0 | D44: 0 | E44: 1 | F44: 1 | G44: 1 | H44: 1 | I44: 1 | J44: 1 | K44: 1 | L44: 0 | M44: 0 | N44: 1 | O44: 1 | P44: 1 | Q44: 1 | R44: 0 | S44: 1 | T44: 1 | U44: 1 | V44: 0 | W44: 0 | X44: 0 | Y44: 1 | Z44: 0 | AA44: 0 | AB44: 0 | AC44: 0 | AD44: 1 | AE44: 0 | AF44: 1 | AG44: 0 | AH44: 0 | AI44: 0 | AJ44: 0 | AK44: 1 | AL44: 1 | AM44: 0 | AN44: 0 | AO44: 0 | AP44: 1 | AQ44: 1 | AR44: 1 | AS44: 1 | AT44: 1 | AU44: 1 | AV44: 1 | AW44: 0 | AX44: 1 | AY44: 0 | AZ44: 0 | BA44: 1 | BB44: =AVERAGE(B44:X44) -> 60.87% | BC44: =AVERAGE(Y44:BA44) -> 48.28% | BD44: =AVERAGE(B44:BA44) -> 53.85%
A45: Lachnospiraceae_[G-3] | B45: 1 | C45: 0 | D45: 0 | E45: 1 | F45: 0 | G45: 0 | H45: 1 | I45: 1 | J45: 1 | K45: 1 | L45: 1 | M45: 0 | N45: 1 | O45: 1 | P45: 0 | Q45: 0 | R45: 1 | S45: 0 | T45: 1 | U45: 1 | V45: 1 | W45: 0 | X45: 1 | Y45: 1 | Z45: 1 | AA45: 0 | AB45: 0 | AC45: 1 | AD45: 1 | AE45: 1 | AF45: 1 | AG45: 1 | AH45: 0 | AI45: 0 | AJ45: 1 | AK45: 0 | AL45: 0 | AM45: 1 | AN45: 0 | AO45: 0 | AP45: 1 | AQ45: 0 | AR45: 1 | AS45: 0 | AT45: 1 | AU45: 0 | AV45: 0 | AW45: 0 | AX45: 1 | AY45: 0 | AZ45: 0 | BA45: 1 | BB45: =AVERAGE(B45:X45) -> 60.87% | BC45: =AVERAGE(Y45:BA45) -> 48.28% | BD45: =AVERAGE(B45:BA45) -> 53.85%
A46: Propionibacterium | B46: 1 | C46: 1 | D46: 0 | E46: 1 | F46: 0 | G46: 0 | H46: 1 | I46: 0 | J46: 0 | K46: 1 | L46: 1 | M46: 0 | N46: 0 | O46: 0 | P46: 0 | Q46: 1 | R46: 1 | S46: 1 | T46: 1 | U46: 1 | V46: 0 | W46: 1 | X46: 0 | Y46: 1 | Z46: 1 | AA46: 1 | AB46: 0 | AC46: 0 | AD46: 1 | AE46: 1 | AF46: 1 | AG46: 1 | AH46: 0 | AI46: 1 | AJ46: 1 | AK46: 1 | AL46: 1 | AM46: 1 | AN46: 0 | AO46: 0 | AP46: 0 | AQ46: 0 | AR46: 0 | AS46: 1 | AT46: 1 | AU46: 0 | AV46: 0 | AW46: 0 | AX46: 0 | AY46: 0 | AZ46: 0 | BA46: 1 | BB46: =AVERAGE(B46:X46) -> 52.17% | BC46: =AVERAGE(Y46:BA46) -> 51.72% | BD46: =AVERAGE(B46:BA46) -> 51.92%
A47: TM7_[G-6] | B47: 0 | C47: 1 | D47: 1 | E47: 1 | F47: 0 | G47: 0 | H47: 1 | I47: 1 | J47: 0 | K47: 1 | L47: 0 | M47: 0 | N47: 1 | O47: 1 | P47: 1 | Q47: 0 | R47: 1 | S47: 0 | T47: 0 | U47: 0 | V47: 0 | W47: 1 | X47: 0 | Y47: 1 | Z47: 1 | AA47: 0 | AB47: 1 | AC47: 0 | AD47: 0 | AE47: 1 | AF47: 1 | AG47: 1 | AH47: 0 | AI47: 1 | AJ47: 1 | AK47: 1 | AL47: 0 | AM47: 0 | AN47: 1 | AO47: 0 | AP47: 0 | AQ47: 0 | AR47: 1 | AS47: 1 | AT47: 0 | AU47: 1 | AV47: 1 | AW47: 0 | AX47: 0 | AY47: 0 | AZ47: 0 | BA47: 1 | BB47: =AVERAGE(B47:X47) -> 47.83% | BC47: =AVERAGE(Y47:BA47) -> 51.72% | BD47: =AVERAGE(B47:BA47) -> 50.00%
A48: Halomonas | B48: 1 | C48: 0 | D48: 0 | E48: 0 | F48: 0 | G48: 1 | H48: 0 | I48: 0 | J48: 0 | K48: 1 | L48: 1 | M48: 0 | N48: 0 | O48: 1 | P48: 0 | Q48: 1 | R48: 0 | S48: 1 | T48: 0 | U48: 1 | V48: 1 | W48: 1 | X48: 0 | Y48: 1 | Z48: 1 | AA48: 0 | AB48: 1 | AC48: 1 | AD48: 1 | AE48: 1 | AF48: 1 | AG48: 1 | AH48: 1 | AI48: 0 | AJ48: 1 | AK48: 0 | AL48: 0 | AM48: 1 | AN48: 1 | AO48: 1 | AP48: 1 | AQ48: 1 | AR48: 0 | AS48: 0 | AT48: 0 | AU48: 0 | AV48: 0 | AW48: 0 | AX48: 0 | AY48: 0 | AZ48: 0 | BA48: 1 | BB48: =AVERAGE(B48:X48) -> 43.48% | BC48: =AVERAGE(Y48:BA48) -> 55.17% | BD48: =AVERAGE(B48:BA48) -> 50.00%
A49: Peptococcus | B49: 1 | C49: 0 | D49: 0 | E49: 1 | F49: 0 | G49: 0 | H49: 1 | I49: 0 | J49: 1 | K49: 1 | L49: 1 | M49: 0 | N49: 0 | O49: 1 | P49: 0 | Q49: 0 | R49: 1 | S49: 1 | T49: 1 | U49: 0 | V49: 1 | W49: 0 | X49: 1 | Y49: 1 | Z49: 1 | AA49: 1 | AB49: 0 | AC49: 0 | AD49: 1 | AE49: 0 | AF49: 0 | AG49: 1 | AH49: 0 | AI49: 1 | AJ49: 0 | AK49: 0 | AL49: 0 | AM49: 0 | AN49: 1 | AO49: 0 | AP49: 1 | AQ49: 0 | AR49: 1 | AS49: 1 | AT49: 0 | AU49: 1 | AV49: 0 | AW49: 0 | AX49: 0 | AY49: 0 | AZ49: 0 | BA49: 1 | BB49: =AVERAGE(B49:X49) -> 52.17% | BC49: =AVERAGE(Y49:BA49) -> 41.38% | BD49: =AVERAGE(B49:BA49) -> 46.15%
A50: Dialister | B50: 0 | C50: 1 | D50: 0 | E50: 1 | F50: 1 | G50: 0 | H50: 1 | I50: 0 | J50: 0 | K50: 1 | L50: 1 | M50: 0 | N50: 0 | O50: 0 | P50: 1 | Q50: 0 | R50: 1 | S50: 0 | T50: 1 | U50: 0 | V50: 1 | W50: 0 | X50: 1 | Y50: 0 | Z50: 0 | AA50: 0 | AB50: 0 | AC50: 0 | AD50: 1 | AE50: 1 | AF50: 1 | AG50: 1 | AH50: 0 | AI50: 0 | AJ50: 0 | AK50: 1 | AL50: 1 | AM50: 1 | AN50: 0 | AO50: 0 | AP50: 1 | AQ50: 0 | AR50: 1 | AS50: 1 | AT50: 1 | AU50: 1 | AV50: 0 | AW50: 0 | AX50: 0 | AY50: 1 | AZ50: 0 | BA50: 0 | BB50: =AVERAGE(B50:X50) -> 47.83% | BC50: =AVERAGE(Y50:BA50) -> 44.83% | BD50: =AVERAGE(B50:BA50) -> 46.15%
A51: Filifactor | B51: 1 | C51: 0 | D51: 0 | E51: 0 | F51: 0 | G51: 0 | H51: 0 | I51: 0 | J51: 1 | K51: 0 | L51: 0 | M51: 0 | N51: 0 | O51: 1 | P51: 1 | Q51: 0 | R51: 1 | S51: 0 | T51: 1 | U51: 1 | V51: 0 | W51: 0 | X51: 0 | Y51: 1 | Z51: 1 | AA51: 1 | AB51: 0 | AC51: 1 | AD51: 1 | AE51: 1 | AF51: 1 | AG51: 1 | AH51: 0 | AI51: 0 | AJ51: 0 | AK51: 1 | AL51: 0 | AM51: 1 | AN51: 1 | AO51: 1 | AP51: 1 | AQ51: 0 | AR51: 1 | AS51: 0 | AT51: 0 | AU51: 0 | AV51: 0 | AW51: 0 | AX51: 1 | AY51: 1 | AZ51: 0 | BA51: 1 | BB51: =AVERAGE(B51:X51) -> 30.43% | BC51: =AVERAGE(Y51:BA51) -> 58.62% | BD51: =AVERAGE(B51:BA51) -> 46.15%
A52: Moraxella | B52: 1 | C52: 0 | D52: 0 | E52: 0 | F52: 0 | G52: 0 | H52: 0 | I52: 0 | J52: 0 | K52: 1 | L52: 0 | M52: 0 | N52: 0 | O52: 1 | P52: 0 | Q52: 1 | R52: 0 | S52: 0 | T52: 1 | U52: 1 | V52: 1 | W52: 1 | X52: 0 | Y52: 1 | Z52: 1 | AA52: 1 | AB52: 1 | AC52: 0 | AD52: 1 | AE52: 1 | AF52: 0 | AG52: 1 | AH52: 0 | AI52: 0 | AJ52: 1 | AK52: 0 | AL52: 0 | AM52: 0 | AN52: 1 | AO52: 0 | AP52: 1 | AQ52: 1 | AR52: 0 | AS52: 0 | AT52: 0 | AU52: 0 | AV52: 0 | AW52: 0 | AX52: 0 | AY52: 0 | AZ52: 0 | BA52: 1 | BB52: =AVERAGE(B52:X52) -> 34.78% | BC52: =AVERAGE(Y52:BA52) -> 41.38% | BD52: =AVERAGE(B52:BA52) -> 38.46%
A53: Cryptobacterium | B53: 0 | C53: 1 | D53: 0 | E53: 1 | F53: 1 | G53: 0 | H53: 0 | I53: 0 | J53: 0 | K53: 0 | L53: 1 | M53: 0 | N53: 0 | O53: 0 | P53: 1 | Q53: 0 | R53: 0 | S53: 0 | T53: 0 | U53: 0 | V53: 0 | W53: 0 | X53: 0 | Y53: 0 | Z53: 0 | AA53: 0 | AB53: 0 | AC53: 1 | AD53: 0 | AE53: 1 | AF53: 1 | AG53: 0 | AH53: 1 | AI53: 0 | AJ53: 0 | AK53: 0 | AL53: 1 | AM53: 1 | AN53: 1 | AO53: 1 | AP53: 0 | AQ53: 1 | AR53: 0 | AS53: 0 | AT53: 1 | AU53: 1 | AV53: 1 | AW53: 0 | AX53: 0 | AY53: 0 | AZ53: 1 | BA53: 0 | BB53: =AVERAGE(B53:X53) -> 21.74% | BC53: =AVERAGE(Y53:BA53) -> 44.83% | BD53: =AVERAGE(B53:BA53) -> 34.62%
A54: Vibrio | B54: 0 | C54: 0 | D54: 0 | E54: 0 | F54: 0 | G54: 1 | H54: 0 | I54: 0 | J54: 0 | K54: 0 | L54: 0 | M54: 0 | N54: 0 | O54: 1 | P54: 0 | Q54: 0 | R54: 0 | S54: 1 | T54: 0 | U54: 1 | V54: 1 | W54: 0 | X54: 0 | Y54: 1 | Z54: 1 | AA54: 0 | AB54: 1 | AC54: 1 | AD54: 1 | AE54: 1 | AF54: 0 | AG54: 1 | AH54: 0 | AI54: 1 | AJ54: 1 | AK54: 0 | AL54: 0 | AM54: 0 | AN54: 1 | AO54: 1 | AP54: 0 | AQ54: 0 | AR54: 0 | AS54: 0 | AT54: 0 | AU54: 0 | AV54: 0 | AW54: 0 | AX54: 0 | AY54: 0 | AZ54: 0 | BA54: 1 | BB54: =AVERAGE(B54:X54) -> 21.74% | BC54: =AVERAGE(Y54:BA54) -> 41.38% | BD54: =AVERAGE(B54:BA54) -> 32.69%
A55: Stenotrophomonas | B55: 0 | C55: 1 | D55: 0 | E55: 0 | F55: 0 | G55: 0 | H55: 0 | I55: 0 | J55: 0 | K55: 0 | L55: 0 | M55: 0 | N55: 1 | O55: 1 | P55: 0 | Q55: 0 | R55: 1 | S55: 1 | T55: 0 | U55: 1 | V55: 0 | W55: 1 | X55: 0 | Y55: 1 | Z55: 1 | AA55: 1 | AB55: 0 | AC55: 0 | AD55: 1 | AE55: 1 | AF55: 0 | AG55: 1 | AH55: 0 | AI55: 0 | AJ55: 0 | AK55: 0 | AL55: 0 | AM55: 1 | AN55: 1 | AO55: 0 | AP55: 0 | AQ55: 0 | AR55: 0 | AS55: 0 | AT55: 0 | AU55: 0 | AV55: 0 | AW55: 0 | AX55: 0 | AY55: 0 | AZ55: 0 | BA55: 1 | BB55: =AVERAGE(B55:X55) -> 30.43% | BC55: =AVERAGE(Y55:BA55) -> 31.03% | BD55: =AVERAGE(B55:BA55) -> 30.77%
A56: Klebsiella | B56: 0 | C56: 0 | D56: 0 | E56: 1 | F56: 0 | G56: 0 | H56: 0 | I56: 0 | J56: 0 | K56: 1 | L56: 1 | M56: 0 | N56: 1 | O56: 0 | P56: 1 | Q56: 0 | R56: 0 | S56: 0 | T56: 0 | U56: 0 | V56: 1 | W56: 0 | X56: 0 | Y56: 0 | Z56: 1 | AA56: 0 | AB56: 1 | AC56: 1 | AD56: 0 | AE56: 0 | AF56: 1 | AG56: 0 | AH56: 1 | AI56: 0 | AJ56: 0 | AK56: 0 | AL56: 1 | AM56: 0 | AN56: 1 | AO56: 0 | AP56: 0 | AQ56: 0 | AR56: 0 | AS56: 0 | AT56: 1 | AU56: 0 | AV56: 0 | AW56: 1 | AX56: 0 | AY56: 0 | AZ56: 0 | BA56: 0 | BB56: =AVERAGE(B56:X56) -> 26.09% | BC56: =AVERAGE(Y56:BA56) -> 31.03% | BD56: =AVERAGE(B56:BA56) -> 28.85%
A57: Bifidobacterium | B57: 0 | C57: 0 | D57: 0 | E57: 0 | F57: 1 | G57: 0 | H57: 0 | I57: 0 | J57: 0 | K57: 0 | L57: 1 | M57: 0 | N57: 0 | O57: 0 | P57: 1 | Q57: 1 | R57: 0 | S57: 0 | T57: 0 | U57: 0 | V57: 0 | W57: 0 | X57: 0 | Y57: 0 | Z57: 1 | AA57: 0 | AB57: 0 | AC57: 0 | AD57: 0 | AE57: 1 | AF57: 1 | AG57: 0 | AH57: 0 | AI57: 0 | AJ57: 0 | AK57: 0 | AL57: 1 | AM57: 1 | AN57: 0 | AO57: 1 | AP57: 0 | AQ57: 0 | AR57: 0 | AS57: 0 | AT57: 1 | AU57: 1 | AV57: 0 | AW57: 0 | AX57: 0 | AY57: 1 | AZ57: 1 | BA57: 0 | BB57: =AVERAGE(B57:X57) -> 17.39% | BC57: =AVERAGE(Y57:BA57) -> 34.48% | BD57: =AVERAGE(B57:BA57) -> 26.92%
A58: Alloscardovia | B58: 0 | C58: 0 | D58: 0 | E58: 0 | F58: 0 | G58: 0 | H58: 0 | I58: 0 | J58: 0 | K58: 0 | L58: 0 | M58: 0 | N58: 0 | O58: 0 | P58: 1 | Q58: 1 | R58: 0 | S58: 0 | T58: 0 | U58: 0 | V58: 0 | W58: 0 | X58: 0 | Y58: 0 | Z58: 0 | AA58: 0 | AB58: 0 | AC58: 1 | AD58: 0 | AE58: 1 | AF58: 1 | AG58: 0 | AH58: 1 | AI58: 0 | AJ58: 0 | AK58: 1 | AL58: 1 | AM58: 1 | AN58: 1 | AO58: 1 | AP58: 0 | AQ58: 1 | AR58: 0 | AS58: 0 | AT58: 1 | AU58: 1 | AV58: 0 | AW58: 0 | AX58: 0 | AY58: 0 | AZ58: 0 | BA58: 0 | BB58: =AVERAGE(B58:X58) -> 8.70% | BC58: =AVERAGE(Y58:BA58) -> 41.38% | BD58: =AVERAGE(B58:BA58) -> 26.92%
A59: Treponema | B59: 0 | C59: 0 | D59: 0 | E59: 0 | F59: 0 | G59: 0 | H59: 0 | I59: 1 | J59: 1 | K59: 1 | L59: 1 | M59: 0 | N59: 0 | O59: 0 | P59: 0 | Q59: 0 | R59: 1 | S59: 0 | T59: 1 | U59: 0 | V59: 0 | W59: 0 | X59: 0 | Y59: 1 | Z59: 0 | AA59: 1 | AB59: 0 | AC59: 0 | AD59: 1 | AE59: 0 | AF59: 0 | AG59: 0 | AH59: 0 | AI59: 0 | AJ59: 0 | AK59: 1 | AL59: 0 | AM59: 0 | AN59: 0 | AO59: 0 | AP59: 0 | AQ59: 0 | AR59: 1 | AS59: 1 | AT59: 0 | AU59: 0 | AV59: 0 | AW59: 0 | AX59: 0 | AY59: 0 | AZ59: 0 | BA59: 1 | BB59: =AVERAGE(B59:X59) -> 26.09% | BC59: =AVERAGE(Y59:BA59) -> 24.14% | BD59: =AVERAGE(B59:BA59) -> 25.00%
A60: Corynebacterium | B60: 0 | C60: 0 | D60: 0 | E60: 0 | F60: 1 | G60: 0 | H60: 0 | I60: 0 | J60: 0 | K60: 1 | L60: 0 | M60: 0 | N60: 0 | O60: 0 | P60: 0 | Q60: 1 | R60: 0 | S60: 0 | T60: 0 | U60: 0 | V60: 0 | W60: 0 | X60: 0 | Y60: 0 | Z60: 0 | AA60: 0 | AB60: 0 | AC60: 0 | AD60: 1 | AE60: 1 | AF60: 0 | AG60: 1 | AH60: 0 | AI60: 0 | AJ60: 0 | AK60: 0 | AL60: 0 | AM60: 0 | AN60: 0 | AO60: 0 | AP60: 1 | AQ60: 1 | AR60: 0 | AS60: 0 | AT60: 0 | AU60: 1 | AV60: 1 | AW60: 0 | AX60: 0 | AY60: 0 | AZ60: 0 | BA60: 1 | BB60: =AVERAGE(B60:X60) -> 13.04% | BC60: =AVERAGE(Y60:BA60) -> 27.59% | BD60: =AVERAGE(B60:BA60) -> 21.15%
A61: Lactobacillus | B61: 0 | C61: 0 | D61: 0 | E61: 0 | F61: 0 | G61: 0 | H61: 0 | I61: 0 | J61: 0 | K61: 0 | L61: 0 | M61: 0 | N61: 0 | O61: 0 | P61: 0 | Q61: 0 | R61: 0 | S61: 0 | T61: 0 | U61: 0 | V61: 0 | W61: 0 | X61: 0 | Y61: 0 | Z61: 0 | AA61: 0 | AB61: 0 | AC61: 1 | AD61: 0 | AE61: 1 | AF61: 0 | AG61: 0 | AH61: 1 | AI61: 1 | AJ61: 0 | AK61: 0 | AL61: 1 | AM61: 0 | AN61: 0 | AO61: 0 | AP61: 0 | AQ61: 1 | AR61: 0 | AS61: 0 | AT61: 1 | AU61: 0 | AV61: 0 | AW61: 0 | AX61: 0 | AY61: 0 | AZ61: 0 | BA61: 0 | BB61: =AVERAGE(B61:X61) -> 0.00% | BC61: =AVERAGE(Y61:BA61) -> 24.14% | BD61: =AVERAGE(B61:BA61) -> 13.46%
A62: Bacillus | B62: 0 | C62: 0 | D62: 0 | E62: 1 | F62: 0 | G62: 0 | H62: 0 | I62: 0 | J62: 0 | K62: 0 | L62: 0 | M62: 0 | N62: 0 | O62: 0 | P62: 0 | Q62: 0 | R62: 0 | S62: 0 | T62: 0 | U62: 0 | V62: 0 | W62: 0 | X62: 0 | Y62: 0 | Z62: 0 | AA62: 0 | AB62: 0 | AC62: 0 | AD62: 1 | AE62: 0 | AF62: 0 | AG62: 0 | AH62: 0 | AI62: 0 | AJ62: 0 | AK62: 0 | AL62: 0 | AM62: 0 | AN62: 1 | AO62: 0 | AP62: 0 | AQ62: 0 | AR62: 0 | AS62: 0 | AT62: 0 | AU62: 0 | AV62: 0 | AW62: 0 | AX62: 0 | AY62: 0 | AZ62: 0 | BA62: 0 | BB62: =AVERAGE(B62:X62) -> 4.35% | BC62: =AVERAGE(Y62:BA62) -> 6.90% | BD62: =AVERAGE(B62:BA62) -> 5.77%
A63: Acinetobacter | B63: 0 | C63: 0 | D63: 0 | E63: 0 | F63: 0 | G63: 0 | H63: 0 | I63: 0 | J63: 0 | K63: 0 | L63: 0 | M63: 0 | N63: 0 | O63: 0 | P63: 0 | Q63: 0 | R63: 0 | S63: 0 | T63: 0 | U63: 0 | V63: 0 | W63: 1 | X63: 0 | Y63: 0 | Z63: 0 | AA63: 0 | AB63: 0 | AC63: 0 | AD63: 0 | AE63: 1 | AF63: 0 | AG63: 0 | AH63: 0 | AI63: 0 | AJ63: 0 | AK63: 0 | AL63: 0 | AM63: 0 | AN63: 0 | AO63: 0 | AP63: 0 | AQ63: 0 | AR63: 0 | AS63: 0 | AT63: 0 | AU63: 0 | AV63: 0 | AW63: 0 | AX63: 0 | AY63: 0 | AZ63: 0 | BA63: 0 | BB63: =AVERAGE(B63:X63) -> 4.35% | BC63: =AVERAGE(Y63:BA63) -> 3.45% | BD63: =AVERAGE(B63:BA63) -> 3.85%
A64: Escherichia | B64: 0 | C64: 0 | D64: 0 | E64: 0 | F64: 1 | G64: 0 | H64: 0 | I64: 0 | J64: 0 | K64: 0 | L64: 0 | M64: 0 | N64: 0 | O64: 0 | P64: 0 | Q64: 0 | R64: 0 | S64: 0 | T64: 0 | U64: 0 | V64: 0 | W64: 0 | X64: 0 | Y64: 0 | Z64: 0 | AA64: 0 | AB64: 0 | AC64: 0 | AD64: 0 | AE64: 0 | AF64: 0 | AG64: 0 | AH64: 0 | AI64: 0 | AJ64: 0 | AK64: 0 | AL64: 0 | AM64: 0 | AN64: 0 | AO64: 0 | AP64: 0 | AQ64: 0 | AR64: 0 | AS64: 0 | AT64: 0 | AU64: 0 | AV64: 0 | AW64: 0 | AX64: 0 | AY64: 0 | AZ64: 0 | BA64: 0 | BB64: =AVERAGE(B64:X64) -> 4.35% | BC64: =AVERAGE(Y64:BA64) -> 0.00% | BD64: =AVERAGE(B64:BA64) -> 1.92%
A65: # of genera | B65: =SUM(B3:B64) -> 44 | C65: =SUM(C3:C64) -> 37 | D65: 38 | E65: 49 | F65: 42 | G65: 38 | H65: 47 | I65: 41 | J65: 43 | K65: 51 | L65: 46 | M65: 35 | N65: 41 | O65: 43 | P65: 46 | Q65: 44 | R65: 47 | S65: 38 | T65: 47 | U65: 46 | V65: 42 | W65: 41 | X65: 41 | Y65: 45 | Z65: 49 | AA65: 46 | AB65: 32 | AC65: 43 | AD65: 52 | AE65: 55 | AF65: 49 | AG65: 49 | AH65: 34 | AI65: 45 | AJ65: 42 | AK65: 46 | AL65: 47 | AM65: 49 | AN65: 48 | AO65: 35 | AP65: 44 | AQ65: 41 | AR65: 46 | AS65: 45 | AT65: 49 | AU65: 44 | AV65: 38 | AW65: 37 | AX65: 39 | AY65: 39 | AZ65: 39 | BA65: 48 | BB65: =AVERAGE(B65:X65) -> 43 | BC65: =AVERAGE(Y65:BA65) -> 44 | BD65: =AVERAGE(B65:BA65) -> 44
